Workbook

Sheet Bauer
A1: Northwoods Software
A3: Plastic Section Modulus using Bauer Method
B4: Last Revised: September 10, 2023
A6: Applicable Codes:
B7: CSA S16
A9: Project Information:
B10: Date: | C10: =TODAY() -> 2023-09-18
B11: Project Number:
B12: Project Name: | C12: Beam
B13: Description:
B14: Designer: | C14: Dik
B15: Checked: | C15: Dik
A18: Material
B19: Steel
B20: Fy = | C20: 50 | D20: Ksi | E20: 350 | F20: Mpa | G20: Yield Strength of Steel
B21: Es = | C21: =0.1450377377*E21 -> 29007.54754 | D21: Ksi | E21: 200000 | F21: Mpa
B22: fS = | C22: 0.9 | G22: Material Property Factor
B24: Span: | C24: 18.5 | D24: ft | E24: =C24*0.3048 -> 5.6388 | F24: m
B28: W Section:
C29: W18x46 | E29: =VLOOKUP(C29,W_Tbl,2) -> W460x68
B30: Class: | C30: =IF(AND(C42<=D42,C43<=D43),"1",IF(AND(C42<=E42,C43<=E43),"2",IF(AND(C42<=F42,C43<=F43),"3","4"))) -> 1 | G30: Class of Section
B31: d = | C31: =VLOOKUP(C29,W_Tbl,15) -> 18.06 | D31: in | E31: =C31*25.4 -> 458.724 | F31: mm
B32: b = | C32: =VLOOKUP(C29,W_Tbl,16) -> 6.06 | D32: in | E32: =C32*25.4 -> 153.924 | F32: mm
B33: t = | C33: =VLOOKUP(C29,W_Tbl,17) -> 0.6 | D33: in | E33: =C33*25.4 -> 15.24 | F33: mm
B34: w = | C34: =VLOOKUP(C29,W_Tbl,18) -> 0.36 | D34: in | E34: =C34*25.4 -> 9.144 | F34: mm
B35: AW = | C35: =VLOOKUP(C29,W_Tbl,4) -> 13.5 | D35: in2
B36: YW = | C36: =dw/2 -> 9.03 | D36: in
B37: SXW = | C37: =VLOOKUP(C29,W_Tbl,6) -> 78.8 | D37: in3 | E37: =C37*25.4^3/1000 -> 1291.300643 | F37: 103x mm3
B38: ZXW = | C38: =VLOOKUP(C29,W_Tbl,8) -> 90.7 | D38: in3 | E38: =C38*25.4^3/1000 -> 1486.306705 | F38: 103x mm3
B39: IXW = | C39: =VLOOKUP(C29,W_Tbl,5) -> 712 | D39: in4 | E39: =C39*25.4^4/1000000 -> 296.356775 | F39: 106x mm4
C41: 0 | D41: Class 1 | E41: Class 2 | F41: Class 3
B42: Web h/w = | C42: =(C31-2*C33)/C34 -> 46.83333333 | D42: =1100/SQRT(Fy)*(1-0.39*C41) -> 58.79747322 | E42: =1700/SQRT(Fy)*(1-0.61*C41) -> 90.86882225 | F42: =1900/SQRT(Fy)*(1-0.65*C41) -> 101.5592719
B43: Flange b/t = | C43: =E32/(2*E33) -> 5.05 | D43: =145/SQRT(Fy) -> 7.750576015 | E43: =170/SQRT(Fy) -> 9.086882225 | F43: =200/SQRT(Fy) -> 10.69044968
B44: Flexure:
B45: Mrw = | C45: =E45*0.7375621492773 -> 345.3167238 | D45: K-ft | E45: =IF(OR(C30="1",C30="2"),Fy*FS*E38/1000,Fy*FS*E37/1000) -> 468.186612 | F45: KN_m
B49: C Section
B50: Section: | C50: C12x25 | E50: =VLOOKUP(C50,W_Tbl,2) -> W250x167
B51: d = | C51: =VLOOKUP(C50,C_Tbl,15) -> 12.00787402 | D51: in | E51: =C51*25.4 -> 305 | F51: mm
B52: b = | C52: =VLOOKUP(C50,C_Tbl,16) -> 3.031496063 | D52: in | E52: =C52*25.4 -> 77 | F52: mm
B53: t = | C53: =VLOOKUP(C50,C_Tbl,17) -> 0.5 | D53: in | E53: =C53*25.4 -> 12.7 | F53: mm
B54: w = | C54: =VLOOKUP(C50,C_Tbl,18) -> 0.3858267717 | D54: in | E54: =C54*25.4 -> 9.8 | F54: mm
B55: AC = | C55: =VLOOKUP(C50,C_Tbl,4) -> 7.316014632 | D55: in2
B56: YC = | C56: =dc/2 -> 6.003937008 | D56: in
B57: SXC = | C57: =VLOOKUP(C50,C_Tbl,6) -> 23.98233143 | D57: in3 | E57: =C57*25.4^3/1000 -> 393 | F57: 103x mm3
B58: IXC = | C58: =VLOOKUP(C50,C_Tbl,5) -> 143.9103256 | D58: in4 | E58: =C58*25.4^4/1000000 -> 59.9 | F58: 106x mm4
B59: b / t = | C59: =bc/tc -> 6.062992126
B60: b / t Class = | C60: =IF(C59<=170/SQRT(Fy), 2,3) -> 2
B61: y = | C61: 3.4 | D61: in
B62: Clt = | C62: =dw-y-dc-tw -> 2.052125984 | D62: in
B63: Clb = | C63: =y-tw -> 2.8 | D63: in
B67: Composite Section
B68: Acm = | C68: =Aw+Ac -> 20.81601463 | D68: in2
B69: Ycmb = | C69: =(Aw*yw+Ac*(y+dc/2))/Acm -> 9.161424226 | D69: in
B70: Ycmt = | C70: =dw-ycmb -> 8.898575774 | D70: in
B71: Ixcm = | C71: =Ixw+Aw*(yw-ycmb)^2+Ixc+Ac*(y+dc/2-ycmb)^2 -> 856.5737748 | D71: in4
B72: Sxcmt = | C72: =Ixcm/ycmt -> 96.25964835 | D72: in3
B73: Sxcmb = | C73: =Ixcm/ycmb -> 93.49788348 | D73: in3
B74: Flexure:
B75: MrC3 = | C75: =FS*MIN(C72:C73)*Fyi/12 -> 350.617063 | D75: K-ft
B76: MrC2 = | C76: =FS*Zx*Fyi/12 -> 443.3436638 | D76: K-ft
F77: n-1 | G77: n-1
F78: S hi | G78: S Ai
A79: n | B79: bn | C79: hn | D79: yn | E79: An | F79: n =0 | G79: n =0 | H79: Y = | I79: =SUM(I83:I89) -> 8.83655708 | J79: Zx = | K79: =+SUM(K81:K87) -> 118.224977
A81: 1 | B81: =bw -> 6.06 | C81: =tw -> 0.6 | D81: =C80/2+D80+C81/2 -> 0.3 | E81: =B81*C81 -> 3.636 | F81: =C80+F80 -> 0 | G81: =E80+G80 -> 0 | H81: =($E$90-G81)/B81 -> 1.70133899 | I81: =IF(AND(H81>0,H81<=C81),F81+H81,0) -> 0 | J81: =IF(I81=0,$I$79-D81,"na") -> 8.53655708 | K81: =IF(I81=0,ABS(J81)*E81,B81*H81^2/2+B81*(C81-H81)^2/2) -> 31.03892154
A82: 2 | B82: =ww -> 0.36 | C82: =Clt -> 2.052125984 | D82: =C81/2+D81+C82/2 -> 1.626062992 | E82: =B82*C82 -> 0.7387653543 | F82: =C81+F81 -> 0.6 | G82: =E81+G81 -> 3.636 | H82: =($E$90-G82)/B82 -> 18.53920633 | I82: =IF(AND(H82>0,H82<=C82),F82+H82,0) -> 0 | J82: =IF(I82=0,$I$79-D82,"na") -> 7.210494088 | K82: =IF(I82=0,ABS(J82)*E82,B82*H82^2/2+B82*(C82-H82)^2/2) -> 5.32686322
A83: 3 | B83: =bc+ww -> 3.391496063 | C83: =tc -> 0.5 | D83: =C82/2+D82+C83/2 -> 2.902125984 | E83: =B83*C83 -> 1.695748031 | F83: =C82+F82 -> 2.652125984 | G83: =E82+G82 -> 4.374765354 | H83: =($E$90-G83)/B83 -> 1.750068057 | I83: =IF(AND(H83>0,H83<=C83),F83+H83,0) -> 0 | J83: =IF(I83=0,$I$79-D83,"na") -> 5.934431096 | K83: =IF(I83=0,ABS(J83)*E83,B83*H83^2/2+B83*(C83-H83)^2/2) -> 10.06329985
A84: 4 | B84: =ww+wc -> 0.7458267717 | C84: =dc-2*tc -> 11.00787402 | D84: =C83/2+D83+C84/2 -> 8.656062992 | E84: =B84*C84 -> 8.20996714 | F84: =C83+F83 -> 3.152125984 | G84: =E83+G83 -> 6.070513386 | H84: =($E$90-G84)/B84 -> 5.684431096 | I84: =IF(AND(H84>0,H84<=C84),F84+H84,0) -> 8.83655708 | J84: =IF(I84=0,$I$79-D84,"na") -> na | K84: =IF(I84=0,ABS(J84)*E84,B84*H84^2/2+B84*(C84-H84)^2/2) -> 22.61786862
A85: 5 | B85: =bc+ww -> 3.391496063 | C85: =tc -> 0.5 | D85: =C84/2+D84+C85/2 -> 14.41 | E85: =B85*C85 -> 1.695748031 | F85: =C84+F84 -> 14.16 | G85: =E84+G84 -> 14.28048053 | H85: =($E$90-G85)/B85 -> -1.170682841 | I85: =IF(AND(H85>0,H85<=C85),F85+H85,0) -> 0 | J85: =IF(I85=0,$I$79-D85,"na") -> -5.57344292 | K85: =IF(I85=0,ABS(J85)*E85,B85*H85^2/2+B85*(C85-H85)^2/2) -> 9.45115486
A86: 6 | B86: =ww -> 0.36 | C86: =Clb -> 2.8 | D86: =C85/2+D85+C86/2 -> 16.06 | E86: =B86*C86 -> 1.008 | F86: =C85+F85 -> 14.66 | G86: =E85+G85 -> 15.97622856 | H86: =($E$90-G86)/B86 -> -15.73920633 | I86: =IF(AND(H86>0,H86<=C86),F86+H86,0) -> 0 | J86: =IF(I86=0,$I$79-D86,"na") -> -7.22344292 | K86: =IF(I86=0,ABS(J86)*E86,B86*H86^2/2+B86*(C86-H86)^2/2) -> 7.281230463
A87: 7 | B87: =bw -> 6.06 | C87: =tw -> 0.6 | D87: =C86/2+D86+C87/2 -> 17.76 | E87: =B87*C87 -> 3.636 | F87: =C86+F86 -> 17.46 | G87: =E86+G86 -> 16.98422856 | H87: =($E$90-G87)/B87 -> -1.10133899 | I87: =IF(AND(H87>0,H87<=C87),F87+H87,0) -> 0 | J87: =IF(I87=0,$I$79-D87,"na") -> -8.92344292 | K87: =IF(I87=0,ABS(J87)*E87,B87*H87^2/2+B87*(C87-H87)^2/2) -> 32.44563846
B88: S d = | C88: =SUM(C81:C87) -> 18.06 | E88: =SUM(E81:E87) -> 20.62022856
D90: S Area / 2 = | E90: =E88/2 -> 10.31011428

Sheet W
B1: 1 | C1: 2 | D1: 3 | E1: 4 | F1: 5 | G1: 6 | H1: 7 | I1: 8 | J1: 9 | K1: 10 | L1: 11 | M1: 12 | N1: 13 | O1: 14 | P1: 15 | Q1: 16 | R1: 17 | S1: 18 | T1: 19 | U1: 20 | V1: 21 | W1: 22
A2: Sorted | D2: Mass | E2: Area | F2: Ix | G2: Sx | H2: rx | I2: Zx | J2: Iy | K2: Sy | L2: ry | M2: Zy | N2: J | O2: Cw | P2: d | Q2: b | R2: t | S2: w | T2: k | U2: k1 | V2: S.Area | W2: NDX
A3: Imperial | B3: Imperial | C3: Metric | D3: lb/ft | E3: in^2 | F3: in^4 | G3: in^3 | H3: in | I3: in^3 | J3: in^4 | K3: in^3 | L3: in | M3: in^3 | N3: in^4 | O3: in^6 | P3: in | Q3: in | R3: in | S3: in | T3: in | U3: in | V3: ft^2/ft | W3: NDX
A4: W36x300 | B4: W10x100 | C4: W250x149 | D4: 100 | E4: 29.4 | F4: 623 | G4: 112 | H4: 4.6 | I4: 130 | J4: 207 | K4: 40 | L4: 2.65 | M4: 61 | N4: 10.9 | O4: 5150 | P4: 11.1 | Q4: 10.34 | R4: 1.12 | S4: 0.68 | T4: 1.75 | U4: 0.88 | V4: 5.18 | W4: 154
A5: W36x280 | B5: ` | C5: W250x167 | D5: 112 | E5: 32.9 | F5: 716 | G5: 126 | H5: 4.66 | I5: 147 | J5: 236 | K5: 45.3 | L5: 2.68 | M5: 69.2 | N5: 15.1 | O5: 6030 | P5: 11.36 | Q5: 10.41 | R5: 1.25 | S5: 0.76 | T5: 1.88 | U5: 0.94 | V5: 5.24 | W5: 153
A6: W36x260 | B6: W10x12 | C6: W250x18 | D6: 12 | E6: 3.54 | F6: 53.8 | G6: 10.9 | H6: 3.9 | I6: 12.6 | J6: 2.2 | K6: 1.1 | L6: 0.79 | M6: 1.7 | N6: 0.06 | O6: 50.9 | P6: 9.87 | Q6: 3.96 | R6: 0.21 | S6: 0.19 | T6: 0.63 | U6: 0.44 | V6: 2.93 | W6: 171
A7: W36x245 | B7: W10x15 | C7: W250x22 | D7: 15 | E7: 4.41 | F7: 68.9 | G7: 13.8 | H7: 3.95 | I7: 16 | J7: 2.9 | K7: 1.4 | L7: 0.81 | M7: 2.3 | N7: 0.1 | O7: 68.3 | P7: 9.99 | Q7: 4 | R7: 0.27 | S7: 0.23 | T7: 0.69 | U7: 0.44 | V7: 2.96 | W7: 170
A8: W36x230 | B8: W10x16 | C8: W250x24 | D8: 16 | E8: 4.82 | F8: 83.4 | G8: 16.8 | H8: 4.17 | I8: 18.7 | J8: 7.8 | K8: 2.7 | L8: 1.28 | M8: 4.2 | N8: 0.1 | O8: 184 | P8: 9.96 | Q8: 5.71 | R8: 0.25 | S8: 0.2 | T8: 0.63 | U8: 0.39 | V8: 3.54 | W8: 167
A9: W36x210 | B9: W10x17 | C9: W250x25 | D9: 17 | E9: 4.99 | F9: 81.9 | G9: 16.2 | H9: 4.05 | I9: 18.7 | J9: 3.6 | K9: 1.8 | L9: 0.84 | M9: 2.8 | N9: 0.16 | O9: 85.1 | P9: 10.11 | Q9: 4.01 | R9: 0.33 | S9: 0.24 | T9: 0.75 | U9: 0.5 | V9: 2.98 | W9: 169
A10: W36x194 | B10: W10x19 | C10: W250x28 | D10: 19 | E10: 5.62 | F10: 96.3 | G10: 18.8 | H10: 4.14 | I10: 21.6 | J10: 4.3 | K10: 2.1 | L10: 0.87 | M10: 3.4 | N10: 0.23 | O10: 104 | P10: 10.24 | Q10: 4.02 | R10: 0.4 | S10: 0.25 | T10: 0.81 | U10: 0.5 | V10: 3 | W10: 168
A11: W36x182 | B11: W10x22 | C11: W250x33 | D11: 22 | E11: 6.49 | F11: 118 | G11: 23.2 | H11: 4.27 | I11: 26 | J11: 11.4 | K11: 4 | L11: 1.33 | M11: 6.1 | N11: 0.24 | O11: 274 | P11: 10.17 | Q11: 5.75 | R11: 0.36 | S11: 0.24 | T11: 0.75 | U11: 0.5 | V11: 3.57 | W11: 166
A12: W36x170 | B12: W10x26 | C12: W250x39 | D12: 26 | E12: 7.61 | F12: 144 | G12: 27.9 | H12: 4.35 | I12: 31.3 | J12: 14.1 | K12: 4.9 | L12: 1.36 | M12: 7.5 | N12: 0.4 | O12: 345 | P12: 10.33 | Q12: 5.77 | R12: 0.44 | S12: 0.26 | T12: 0.88 | U12: 0.5 | V12: 3.6 | W12: 165
A13: W36x160 | B13: W10x30 | C13: W250x45 | D13: 30 | E13: 8.84 | F13: 170 | G13: 32.4 | H13: 4.38 | I13: 36.6 | J13: 16.7 | K13: 5.8 | L13: 1.37 | M13: 8.8 | N13: 0.62 | O13: 414 | P13: 10.47 | Q13: 5.81 | R13: 0.51 | S13: 0.3 | T13: 0.94 | U13: 0.5 | V13: 3.63 | W13: 164
A14: W36x150 | B14: W10x33 | C14: W250x49 | D14: 33 | E14: 9.71 | F14: 170 | G14: 35 | H14: 4.19 | I14: 38.8 | J14: 36.6 | K14: 9.2 | L14: 1.94 | M14: 14 | N14: 0.58 | O14: 791 | P14: 9.73 | Q14: 7.96 | R14: 0.43 | S14: 0.29 | T14: 1.06 | U14: 0.69 | V14: 4.23 | W14: 163
A15: W36x135 | B15: W10x39 | C15: W250x58 | D15: 39 | E15: 11.5 | F15: 209 | G15: 42.1 | H15: 4.27 | I15: 46.8 | J15: 45 | K15: 11.3 | L15: 1.98 | M15: 17.2 | N15: 0.98 | O15: 992 | P15: 9.92 | Q15: 7.99 | R15: 0.53 | S15: 0.32 | T15: 1.13 | U15: 0.69 | V15: 4.26 | W15: 162
A16: W33x241 | B16: W10x45 | C16: W250x67 | D16: 45 | E16: 13.3 | F16: 248 | G16: 49.1 | H16: 4.32 | I16: 54.9 | J16: 53.4 | K16: 13.3 | L16: 2.01 | M16: 20.3 | N16: 1.51 | O16: 1200 | P16: 10.1 | Q16: 8.02 | R16: 0.62 | S16: 0.35 | T16: 1.25 | U16: 0.69 | V16: 4.3 | W16: 161
A17: W33x221 | B17: W10x49 | C17: W250x73 | D17: 49 | E17: 14.4 | F17: 272 | G17: 54.6 | H17: 4.35 | I17: 60.4 | J17: 93.4 | K17: 18.7 | L17: 2.54 | M17: 28.3 | N17: 1.39 | O17: 2070 | P17: 9.98 | Q17: 10 | R17: 0.56 | S17: 0.34 | T17: 1.19 | U17: 0.69 | V17: 4.94 | W17: 160
A18: W33x201 | B18: W10x54 | C18: W250x80 | D18: 54 | E18: 15.8 | F18: 303 | G18: 60 | H18: 4.37 | I18: 66.6 | J18: 103 | K18: 20.6 | L18: 2.56 | M18: 31.3 | N18: 1.82 | O18: 2310 | P18: 10.09 | Q18: 10.03 | R18: 0.61 | S18: 0.37 | T18: 1.25 | U18: 0.69 | V18: 4.96 | W18: 159
A19: W33x152 | B19: W10x60 | C19: W250x89 | D19: 60 | E19: 17.6 | F19: 341 | G19: 66.7 | H19: 4.39 | I19: 74.6 | J19: 116 | K19: 23 | L19: 2.57 | M19: 35 | N19: 2.48 | O19: 2640 | P19: 10.22 | Q19: 10.08 | R19: 0.68 | S19: 0.42 | T19: 1.31 | U19: 0.75 | V19: 4.99 | W19: 158
A20: W33x141 | B20: W10x68 | C20: W250x101 | D20: 68 | E20: 20 | F20: 394 | G20: 75.7 | H20: 4.44 | I20: 85.3 | J20: 134 | K20: 26.4 | L20: 2.59 | M20: 40.1 | N20: 3.56 | O20: 3110 | P20: 10.4 | Q20: 10.13 | R20: 0.77 | S20: 0.47 | T20: 1.38 | U20: 0.75 | V20: 5.03 | W20: 157
A21: W33x130 | B21: W10x77 | C21: W250x115 | D21: 77 | E21: 22.6 | F21: 455 | G21: 85.9 | H21: 4.49 | I21: 97.6 | J21: 154 | K21: 30.1 | L21: 2.6 | M21: 45.9 | N21: 5.11 | O21: 3640 | P21: 10.6 | Q21: 10.19 | R21: 0.87 | S21: 0.53 | T21: 1.5 | U21: 0.81 | V21: 5.07 | W21: 156
A22: W33x118 | B22: W10x88 | C22: W250x131 | D22: 88 | E22: 25.9 | F22: 534 | G22: 98.5 | H22: 4.54 | I22: 113 | J22: 179 | K22: 34.8 | L22: 2.63 | M22: 53.1 | N22: 7.53 | O22: 4340 | P22: 10.84 | Q22: 10.27 | R22: 0.99 | S22: 0.6 | T22: 1.63 | U22: 0.81 | V22: 5.13 | W22: 155
A23: W30x211 | B23: W12x106 | C23: W310x158 | D23: 106 | E23: 31.2 | F23: 933 | G23: 145 | H23: 5.47 | I23: 164 | J23: 301 | K23: 49.3 | L23: 3.11 | M23: 75.1 | N23: 9.13 | O23: 10700 | P23: 12.89 | Q23: 12.22 | R23: 0.99 | S23: 0.61 | T23: 1.69 | U23: 0.94 | V23: 6.12 | W23: 134
A24: W30x191 | B24: W12x120 | C24: W310x179 | D24: 120 | E24: 35.3 | F24: 1070 | G24: 163 | H24: 5.51 | I24: 186 | J24: 345 | K24: 56 | L24: 3.13 | M24: 85.4 | N24: 12.9 | O24: 12500 | P24: 13.12 | Q24: 12.32 | R24: 1.1 | S24: 0.71 | T24: 1.81 | U24: 1 | V24: 6.17 | W24: 133
A25: W30x173 | B25: W12x136 | C25: W310x202 | D25: 136 | E25: 39.9 | F25: 1240 | G25: 186 | H25: 5.58 | I25: 214 | J25: 398 | K25: 64.2 | L25: 3.16 | M25: 98 | N25: 18.5 | O25: 14700 | P25: 13.41 | Q25: 12.4 | R25: 1.25 | S25: 0.79 | T25: 1.94 | U25: 1 | V25: 6.24 | W25: 132
A26: W30x132 | B26: W12x14 | C26: W310x21 | D26: 14 | E26: 4.16 | F26: 88.6 | G26: 14.9 | H26: 4.62 | I26: 17.4 | J26: 2.4 | K26: 1.2 | L26: 0.75 | M26: 1.9 | N26: 0.07 | O26: 80.6 | P26: 11.91 | Q26: 3.97 | R26: 0.23 | S26: 0.2 | T26: 0.69 | U26: 0.5 | V26: 3.27 | W26: 152
A27: W30x124 | B27: W12x152 | C27: W310x226 | D27: 152 | E27: 44.7 | F27: 1430 | G27: 209 | H27: 5.66 | I27: 243 | J27: 454 | K27: 72.8 | L27: 3.19 | M27: 111 | N27: 25.8 | O27: 17200 | P27: 13.71 | Q27: 12.48 | R27: 1.4 | S27: 0.87 | T27: 2.13 | U27: 1.06 | V27: 6.3 | W27: 131
A28: W30x116 | B28: W12x16 | C28: W310x24 | D28: 16 | E28: 4.71 | F28: 103 | G28: 17.1 | H28: 4.67 | I28: 20.1 | J28: 2.8 | K28: 1.4 | L28: 0.77 | M28: 2.3 | N28: 0.1 | O28: 96.9 | P28: 11.99 | Q28: 3.99 | R28: 0.27 | S28: 0.22 | T28: 0.75 | U28: 0.5 | V28: 3.29 | W28: 151
A29: W30x108 | B29: W12x170 | C29: W310x253 | D29: 170 | E29: 50 | F29: 1650 | G29: 235 | H29: 5.74 | I29: 275 | J29: 517 | K29: 82.3 | L29: 3.22 | M29: 126 | N29: 35.6 | O29: 20100 | P29: 14.03 | Q29: 12.57 | R29: 1.56 | S29: 0.96 | T29: 2.25 | U29: 1.13 | V29: 6.37 | W29: 130
A30: W30x99 | B30: W12x19 | C30: W310x28 | D30: 19 | E30: 5.57 | F30: 130 | G30: 21.3 | H30: 4.82 | I30: 24.7 | J30: 3.8 | K30: 1.9 | L30: 0.82 | M30: 3 | N30: 0.18 | O30: 131 | P30: 12.16 | Q30: 4 | R30: 0.35 | S30: 0.23 | T30: 0.81 | U30: 0.5 | V30: 3.32 | W30: 150
A31: W27x178 | B31: W12x190 | C31: W310x283 | D31: 190 | E31: 55.8 | F31: 1890 | G31: 263 | H31: 5.82 | I31: 311 | J31: 589 | K31: 93 | L31: 3.25 | M31: 143 | N31: 48.8 | O31: 23500 | P31: 14.38 | Q31: 12.67 | R31: 1.74 | S31: 1.06 | T31: 2.44 | U31: 1.19 | V31: 6.44 | W31: 129
A32: W27x161 | B32: W12x21 | C32: W310x31 | D32: 21 | E32: 6.23 | F32: 161 | G32: 26.8 | H32: 5.09 | I32: 29.8 | J32: 13.1 | K32: 4 | L32: 1.45 | M32: 6.2 | N32: 0.18 | O32: 450.6 | P32: 12.05 | Q32: 6.46 | R32: 0.29 | S32: 0.2 | T32: 0.87 | U32: 0.59 | V32: 4.13 | W32: 148
A33: W27x146 | B33: W12x210 | C33: W310x313 | D33: 210 | E33: 61.8 | F33: 2140 | G33: 292 | H33: 5.89 | I33: 348 | J33: 664 | K33: 104 | L33: 3.28 | M33: 159 | N33: 64.7 | O33: 27200 | P33: 14.71 | Q33: 12.79 | R33: 1.9 | S33: 1.18 | T33: 2.63 | U33: 1.25 | V33: 6.52 | W33: 128
A34: W27x114 | B34: W12x22 | C34: W310x33 | D34: 22 | E34: 6.48 | F34: 156 | G34: 25.4 | H34: 4.91 | I34: 29.3 | J34: 4.7 | K34: 2.3 | L34: 0.85 | M34: 3.7 | N34: 0.29 | O34: 165 | P34: 12.31 | Q34: 4.03 | R34: 0.42 | S34: 0.26 | T34: 0.88 | U34: 0.5 | V34: 3.35 | W34: 149
A35: W27x102 | B35: W12x230 | C35: W310x342 | D35: 230 | E35: 67.7 | F35: 2420 | G35: 321 | H35: 5.97 | I35: 386 | J35: 742 | K35: 115 | L35: 3.31 | M35: 177 | N35: 83.8 | O35: 31300 | P35: 15.05 | Q35: 12.89 | R35: 2.07 | S35: 1.28 | T35: 2.75 | U35: 1.25 | V35: 6.59 | W35: 127
A36: W27x94 | B36: W12x252 | C36: W310x375 | D36: 252 | E36: 74.1 | F36: 2720 | G36: 353 | H36: 6.06 | I36: 428 | J36: 828 | K36: 127 | L36: 3.34 | M36: 196 | N36: 108 | O36: 35800 | P36: 15.41 | Q36: 13.01 | R36: 2.25 | S36: 1.4 | T36: 2.94 | U36: 1.31 | V36: 6.67 | W36: 126
A37: W27x84 | B37: W12x26 | C37: W310x39 | D37: 26 | E37: 7.65 | F37: 204 | G37: 33.4 | H37: 5.17 | I37: 37.2 | J37: 17.3 | K37: 5.3 | L37: 1.51 | M37: 8.2 | N37: 0.3 | O37: 606 | P37: 12.22 | Q37: 6.49 | R37: 0.38 | S37: 0.23 | T37: 0.88 | U37: 0.5 | V37: 4.16 | W37: 147
A38: W24x162 | B38: W12x279 | C38: W310x415 | D38: 279 | E38: 81.9 | F38: 3110 | G38: 393 | H38: 6.16 | I38: 481 | J38: 937 | K38: 143 | L38: 3.38 | M38: 220 | N38: 143 | O38: 41900 | P38: 15.85 | Q38: 13.14 | R38: 2.47 | S38: 1.53 | T38: 3.19 | U38: 1.38 | V38: 6.77 | W38: 125
A39: W24x146 | B39: W12x30 | C39: W310x45 | D39: 30 | E39: 8.79 | F39: 238 | G39: 38.6 | H39: 5.21 | I39: 43.1 | J39: 20.3 | K39: 6.2 | L39: 1.52 | M39: 9.6 | N39: 0.46 | O39: 719 | P39: 12.34 | Q39: 6.52 | R39: 0.44 | S39: 0.26 | T39: 0.94 | U39: 0.5 | V39: 4.19 | W39: 146
A40: W24x131 | B40: W12x305 | C40: W310x454 | D40: 305 | E40: 89.6 | F40: 3550 | G40: 435 | H40: 6.29 | I40: 537 | J40: 1050 | K40: 159 | L40: 3.42 | M40: 244 | N40: 185 | O40: 48700 | P40: 16.32 | Q40: 13.23 | R40: 2.71 | S40: 1.63 | T40: 3.44 | U40: 1.44 | V40: 6.86 | W40: 124
A41: W24x117 | B41: W12x336 | C41: W310x500 | D41: 336 | E41: 98.8 | F41: 4060 | G41: 483 | H41: 6.41 | I41: 603 | J41: 1190 | K41: 177 | L41: 3.47 | M41: 274 | N41: 243 | O41: 57200 | P41: 16.82 | Q41: 13.38 | R41: 2.96 | S41: 1.77 | T41: 3.69 | U41: 1.5 | V41: 6.97 | W41: 123
A42: W24x104 | B42: W12x35 | C42: W310x52 | D42: 35 | E42: 10.3 | F42: 285 | G42: 45.6 | H42: 5.25 | I42: 51.2 | J42: 24.5 | K42: 7.5 | L42: 1.54 | M42: 11.5 | N42: 0.74 | O42: 879 | P42: 12.5 | Q42: 6.56 | R42: 0.52 | S42: 0.3 | T42: 1 | U42: 0.56 | V42: 4.22 | W42: 145
A43: W24x94 | B43: W12x40 | C43: W310x60 | D43: 40 | E43: 11.8 | F43: 310 | G43: 51.9 | H43: 5.13 | I43: 57.5 | J43: 44.1 | K43: 11 | L43: 1.93 | M43: 16.8 | N43: 0.95 | O43: 1440 | P43: 11.94 | Q43: 8.01 | R43: 0.52 | S43: 0.29 | T43: 1.25 | U43: 0.75 | V43: 4.61 | W43: 144
A44: W24x84 | B44: W12x45 | C44: W310x67 | D44: 45 | E44: 13.2 | F44: 350 | G44: 58.1 | H44: 5.15 | I44: 64.7 | J44: 50 | K44: 12.4 | L44: 1.94 | M44: 19 | N44: 1.31 | O44: 1650 | P44: 12.06 | Q44: 8.04 | R44: 0.57 | S44: 0.34 | T44: 1.25 | U44: 0.81 | V44: 4.64 | W44: 143
A45: W24x76 | B45: W12x50 | C45: W310x74 | D45: 50 | E45: 14.7 | F45: 394 | G45: 64.7 | H45: 5.18 | I45: 72.4 | J45: 56.3 | K45: 13.9 | L45: 1.96 | M45: 21.4 | N45: 1.78 | O45: 1880 | P45: 12.19 | Q45: 8.08 | R45: 0.64 | S45: 0.37 | T45: 1.38 | U45: 0.81 | V45: 4.66 | W45: 142
A46: W24x68 | B46: W12x53 | C46: W310x79 | D46: 53 | E46: 15.6 | F46: 425 | G46: 70.6 | H46: 5.23 | I46: 77.9 | J46: 95.8 | K46: 19.2 | L46: 2.48 | M46: 29.1 | N46: 1.58 | O46: 3160 | P46: 12.06 | Q46: 9.99 | R46: 0.57 | S46: 0.34 | T46: 1.25 | U46: 0.81 | V46: 5.28 | W46: 141
A47: W24x62 | B47: W12x58 | C47: W310x86 | D47: 58 | E47: 17 | F47: 475 | G47: 78 | H47: 5.28 | I47: 86.4 | J47: 107 | K47: 21.4 | L47: 2.51 | M47: 32.5 | N47: 2.1 | O47: 3570 | P47: 12.19 | Q47: 10.01 | R47: 0.64 | S47: 0.36 | T47: 1.38 | U47: 0.81 | V47: 5.31 | W47: 140
A48: W24x55 | B48: W12x65 | C48: W310x97 | D48: 65 | E48: 19.1 | F48: 533 | G48: 87.9 | H48: 5.28 | I48: 96.8 | J48: 174 | K48: 29.1 | L48: 3.02 | M48: 44.1 | N48: 2.18 | O48: 5770 | P48: 12.12 | Q48: 12 | R48: 0.6 | S48: 0.39 | T48: 1.31 | U48: 0.81 | V48: 5.95 | W48: 139
A49: W21x147 | B49: W12x72 | C49: W310x107 | D49: 72 | E49: 21.1 | F49: 597 | G49: 97.4 | H49: 5.31 | I49: 108 | J49: 195 | K49: 32.4 | L49: 3.04 | M49: 49.2 | N49: 2.93 | O49: 6540 | P49: 12.25 | Q49: 12.04 | R49: 0.67 | S49: 0.43 | T49: 1.38 | U49: 0.88 | V49: 5.98 | W49: 138
A50: W21x132 | B50: W12x79 | C50: W310x118 | D50: 79 | E50: 23.2 | F50: 662 | G50: 107 | H50: 5.34 | I50: 119 | J50: 216 | K50: 35.8 | L50: 3.05 | M50: 54.3 | N50: 3.84 | O50: 7320 | P50: 12.38 | Q50: 12.08 | R50: 0.73 | S50: 0.47 | T50: 1.44 | U50: 0.88 | V50: 6.01 | W50: 137
A51: W21x122 | B51: W12x87 | C51: W310x129 | D51: 87 | E51: 25.6 | F51: 740 | G51: 118 | H51: 5.38 | I51: 132 | J51: 241 | K51: 39.7 | L51: 3.07 | M51: 60.4 | N51: 5.1 | O51: 8280 | P51: 12.53 | Q51: 12.13 | R51: 0.81 | S51: 0.52 | T51: 1.5 | U51: 0.88 | V51: 6.04 | W51: 136
A52: W21x111 | B52: W12x96 | C52: W310x143 | D52: 96 | E52: 28.2 | F52: 833 | G52: 131 | H52: 5.44 | I52: 147 | J52: 270 | K52: 44.4 | L52: 3.09 | M52: 67.5 | N52: 6.86 | O52: 9410 | P52: 12.71 | Q52: 12.16 | R52: 0.9 | S52: 0.55 | T52: 1.63 | U52: 0.88 | V52: 6.08 | W52: 135
A53: W21x101 | B53: W14x109 | C53: W360x162 | D53: 109 | E53: 32 | F53: 1240 | G53: 173 | H53: 6.22 | I53: 192 | J53: 447 | K53: 61.2 | L53: 3.73 | M53: 92.7 | N53: 7.12 | O53: 20200 | P53: 14.32 | Q53: 14.61 | R53: 0.86 | S53: 0.53 | T53: 1.56 | U53: 0.88 | V53: 7.17 | W53: 108
A54: W21x93 | B54: W14x120 | C54: W360x179 | D54: 120 | E54: 35.3 | F54: 1380 | G54: 190 | H54: 6.24 | I54: 212 | J54: 495 | K54: 67.5 | L54: 3.74 | M54: 102 | N54: 9.37 | O54: 22700 | P54: 14.48 | Q54: 14.67 | R54: 0.94 | S54: 0.59 | T54: 1.63 | U54: 0.94 | V54: 7.2 | W54: 107
A55: W21x83 | B55: W14x132 | C55: W360x196 | D55: 132 | E55: 38.8 | F55: 1530 | G55: 209 | H55: 6.28 | I55: 234 | J55: 548 | K55: 74.5 | L55: 3.76 | M55: 113 | N55: 12.3 | O55: 25500 | P55: 14.66 | Q55: 14.72 | R55: 1.03 | S55: 0.65 | T55: 1.69 | U55: 0.94 | V55: 7.24 | W55: 106
A56: W21x73 | B56: W14x145 | C56: W360x216 | D56: 145 | E56: 42.7 | F56: 1710 | G56: 232 | H56: 6.33 | I56: 260 | J56: 677 | K56: 87.3 | L56: 3.98 | M56: 133 | N56: 15.2 | O56: 31700 | P56: 14.78 | Q56: 15.5 | R56: 1.09 | S56: 0.68 | T56: 1.75 | U56: 1 | V56: 7.52 | W56: 105
A57: W21x68 | B57: W14x159 | C57: W360x237 | D57: 159 | E57: 46.7 | F57: 1900 | G57: 254 | H57: 6.38 | I57: 287 | J57: 748 | K57: 96.2 | L57: 4 | M57: 146 | N57: 19.8 | O57: 35600 | P57: 14.98 | Q57: 15.56 | R57: 1.19 | S57: 0.74 | T57: 1.88 | U57: 1 | V57: 7.56 | W57: 104
A58: W21x62 | B58: W14x176 | C58: W360x262 | D58: 176 | E58: 51.8 | F58: 2140 | G58: 281 | H58: 6.43 | I58: 320 | J58: 838 | K58: 107 | L58: 4.02 | M58: 163 | N58: 26.5 | O58: 40500 | P58: 15.22 | Q58: 15.65 | R58: 1.31 | S58: 0.83 | T58: 2 | U58: 1.06 | V58: 7.61 | W58: 103
A59: W21x55 | B59: W14x193 | C59: W360x287 | D59: 193 | E59: 56.8 | F59: 2400 | G59: 310 | H59: 6.5 | I59: 355 | J59: 931 | K59: 119 | L59: 4.05 | M59: 180 | N59: 34.8 | O59: 45900 | P59: 15.48 | Q59: 15.71 | R59: 1.44 | S59: 0.89 | T59: 2.13 | U59: 1.06 | V59: 7.67 | W59: 102
A60: W21x48 | B60: W14x211 | C60: W360x314 | D60: 211 | E60: 62 | F60: 2660 | G60: 338 | H60: 6.55 | I60: 390 | J60: 1030 | K60: 130 | L60: 4.07 | M60: 198 | N60: 44.6 | O60: 51600 | P60: 15.72 | Q60: 15.8 | R60: 1.56 | S60: 0.98 | T60: 2.25 | U60: 1.13 | V60: 7.72 | W60: 101
A61: W21x57 | B61: W14x22 | C61: W360x33 | D61: 22 | E61: 6.49 | F61: 199 | G61: 29 | H61: 5.54 | I61: 33.2 | J61: 7 | K61: 2.8 | L61: 1.04 | M61: 4.4 | N61: 0.21 | O61: 314 | P61: 13.74 | Q61: 5 | R61: 0.34 | S61: 0.23 | T61: 0.88 | U61: 0.56 | V61: 3.92 | W61: 122
A62: W21x50 | B62: W14x233 | C62: W360x347 | D62: 233 | E62: 68.5 | F62: 3010 | G62: 375 | H62: 6.63 | I62: 436 | J62: 1150 | K62: 145 | L62: 4.1 | M62: 221 | N62: 59.5 | O62: 59000 | P62: 16.04 | Q62: 15.89 | R62: 1.72 | S62: 1.07 | T62: 2.38 | U62: 1.19 | V62: 7.79 | W62: 100
A63: W21x44 | B63: W14x257 | C63: W360x382 | D63: 257 | E63: 75.6 | F63: 3400 | G63: 415 | H63: 6.71 | I63: 487 | J63: 1290 | K63: 161 | L63: 4.13 | M63: 246 | N63: 79.1 | O63: 67700 | P63: 16.38 | Q63: 15.99 | R63: 1.89 | S63: 1.18 | T63: 2.56 | U63: 1.19 | V63: 7.87 | W63: 99
A64: W18x119 | B64: W14x26 | C64: W360x39 | D64: 26 | E64: 7.69 | F64: 245 | G64: 35.3 | H64: 5.65 | I64: 40.2 | J64: 8.9 | K64: 3.5 | L64: 1.08 | M64: 5.5 | N64: 0.36 | O64: 405 | P64: 13.91 | Q64: 5.03 | R64: 0.42 | S64: 0.26 | T64: 0.94 | U64: 0.56 | V64: 3.95 | W64: 121
A65: W18x106 | B65: W14x283 | C65: W360x421 | D65: 283 | E65: 83.3 | F65: 3840 | G65: 459 | H65: 6.79 | I65: 542 | J65: 1440 | K65: 179 | L65: 4.17 | M65: 274 | N65: 104 | O65: 77500 | P65: 16.74 | Q65: 16.11 | R65: 2.07 | S65: 1.29 | T65: 2.75 | U65: 1.25 | V65: 7.94 | W65: 98
A66: W18x97 | B66: W14x30 | C66: W360x45 | D66: 30 | E66: 8.85 | F66: 291 | G66: 42 | H66: 5.73 | I66: 47.3 | J66: 19.6 | K66: 5.8 | L66: 1.49 | M66: 9 | N66: 0.38 | O66: 887 | P66: 13.84 | Q66: 6.73 | R66: 0.39 | S66: 0.27 | T66: 0.94 | U66: 0.63 | V66: 4.5 | W66: 120
A67: W18x86 | B67: W14x311 | C67: W360x463 | D67: 311 | E67: 91.4 | F67: 4330 | G67: 506 | H67: 6.88 | I67: 603 | J67: 1610 | K67: 199 | L67: 4.2 | M67: 304 | N67: 136 | O67: 88900 | P67: 17.12 | Q67: 16.23 | R67: 2.26 | S67: 1.41 | T67: 2.94 | U67: 1.31 | V67: 8.03 | W67: 97
A68: W18x76 | B68: W14x34 | C68: W360x51 | D68: 34 | E68: 10 | F68: 340 | G68: 48.6 | H68: 5.83 | I68: 54.6 | J68: 23.3 | K68: 6.9 | L68: 1.53 | M68: 10.6 | N68: 0.57 | O68: 1070 | P68: 13.98 | Q68: 6.75 | R68: 0.46 | S68: 0.28 | T68: 1 | U68: 0.63 | V68: 4.53 | W68: 119
A69: W18x71 | B69: W14x342 | C69: W360x509 | D69: 342 | E69: 101 | F69: 4900 | G69: 559 | H69: 6.98 | I69: 672 | J69: 1810 | K69: 221 | L69: 4.24 | M69: 338 | N69: 178 | O69: 103000 | P69: 17.54 | Q69: 16.36 | R69: 2.47 | S69: 1.54 | T69: 3.13 | U69: 1.38 | V69: 8.12 | W69: 96
A70: W18x65 | B70: W14x370 | C70: W360x551 | D70: 370 | E70: 109 | F70: 5440 | G70: 607 | H70: 7.07 | I70: 736 | J70: 1990 | K70: 241 | L70: 4.27 | M70: 370 | N70: 222 | O70: 116000 | P70: 17.92 | Q70: 16.48 | R70: 2.66 | S70: 1.66 | T70: 3.31 | U70: 1.44 | V70: 8.2 | W70: 95
A71: W18x60 | B71: W14x38 | C71: W360x57 | D71: 38 | E71: 11.2 | F71: 385 | G71: 54.6 | H71: 5.87 | I71: 61.5 | J71: 26.7 | K71: 7.9 | L71: 1.55 | M71: 12.1 | N71: 0.8 | O71: 1230 | P71: 14.1 | Q71: 6.77 | R71: 0.52 | S71: 0.31 | T71: 1.06 | U71: 0.63 | V71: 4.55 | W71: 118
A72: W18x55 | B72: W14x398 | C72: W360x592 | D72: 398 | E72: 117 | F72: 6000 | G72: 656 | H72: 7.16 | I72: 801 | J72: 2170 | K72: 262 | L72: 4.31 | M72: 402 | N72: 273 | O72: 129000 | P72: 18.29 | Q72: 16.59 | R72: 2.85 | S72: 1.77 | T72: 3.5 | U72: 1.5 | V72: 8.28 | W72: 94
A73: W18x50 | B73: W14x426 | C73: W360xx634 | D73: 426 | E73: 125 | F73: 6600 | G73: 707 | H73: 7.26 | I73: 869 | J73: 2360 | K73: 283 | L73: 4.34 | M73: 434 | N73: 331 | O73: 144000 | P73: 18.67 | Q73: 16.7 | R73: 3.04 | S73: 1.88 | T73: 3.69 | U73: 1.56 | V73: 8.36 | W73: 93
A74: W18x45 | B74: W14x43 | C74: W360x64 | D74: 43 | E74: 12.6 | F74: 428 | G74: 62.7 | H74: 5.82 | I74: 69.6 | J74: 45.2 | K74: 11.3 | L74: 1.89 | M74: 17.3 | N74: 1.05 | O74: 1950 | P74: 13.66 | Q74: 8 | R74: 0.53 | S74: 0.3 | T74: 1.31 | U74: 0.88 | V74: 4.89 | W74: 117
A75: W18x41 | B75: W14x455 | C75: W360xx677 | D75: 455 | E75: 134 | F75: 7190 | G75: 756 | H75: 7.33 | I75: 936 | J75: 2560 | K75: 304 | L75: 4.38 | M75: 468 | N75: 395 | O75: 160000 | P75: 19.02 | Q75: 16.84 | R75: 3.21 | S75: 2.02 | T75: 3.88 | U75: 1.63 | V75: 8.45 | W75: 92
A76: W18x46 | B76: W14x48 | C76: W360x72 | D76: 48 | E76: 14.1 | F76: 485 | G76: 70.3 | H76: 5.85 | I76: 78.4 | J76: 51.4 | K76: 12.8 | L76: 1.91 | M76: 19.6 | N76: 1.46 | O76: 2240 | P76: 13.79 | Q76: 8.03 | R76: 0.59 | S76: 0.34 | T76: 1.38 | U76: 0.88 | V76: 4.92 | W76: 116
A77: W18x40 | B77: W14x500 | C77: W360xx744 | D77: 500 | E77: 147 | F77: 8210 | G77: 838 | H77: 7.48 | I77: 1050 | J77: 2880 | K77: 339 | L77: 4.43 | M77: 522 | N77: 514 | O77: 187000 | P77: 19.6 | Q77: 17.01 | R77: 3.5 | S77: 2.19 | T77: 4.19 | U77: 1.75 | V77: 8.57 | W77: 91
A78: W18x35 | B78: W14x53 | C78: W360x79 | D78: 53 | E78: 15.6 | F78: 541 | G78: 77.8 | H78: 5.89 | I78: 87.1 | J78: 57.7 | K78: 14.3 | L78: 1.92 | M78: 22 | N78: 1.94 | O78: 2540 | P78: 13.92 | Q78: 8.06 | R78: 0.66 | S78: 0.37 | T78: 1.44 | U78: 0.94 | V78: 4.94 | W78: 115
A79: W16x100 | B79: W14x550 | C79: W360xx818 | D79: 550 | E79: 162 | F79: 9430 | G79: 931 | H79: 7.63 | I79: 1180 | J79: 3250 | K79: 378 | L79: 4.49 | M79: 583 | N79: 670 | O79: 219000 | P79: 20.24 | Q79: 17.2 | R79: 3.82 | S79: 2.38 | T79: 4.5 | U79: 1.81 | V79: 8.71 | W79: 90
A80: W16x89 | B80: W14x605 | C80: W360xx900 | D80: 605 | E80: 178 | F80: 10800 | G80: 1040 | H80: 7.8 | I80: 1320 | J80: 3680 | K80: 423 | L80: 4.55 | M80: 652 | N80: 870 | O80: 258000 | P80: 20.92 | Q80: 17.41 | R80: 4.16 | S80: 2.6 | T80: 4.81 | U80: 1.94 | V80: 8.86 | W80: 89
A81: W16x77 | B81: W14x61 | C81: W360x91 | D81: 61 | E81: 17.9 | F81: 640 | G81: 92.2 | H81: 5.98 | I81: 102 | J81: 107 | K81: 21.5 | L81: 2.45 | M81: 32.8 | N81: 2.2 | O81: 4690 | P81: 13.89 | Q81: 9.99 | R81: 0.65 | S81: 0.38 | T81: 1.44 | U81: 0.94 | V81: 5.58 | W81: 114
A82: W16x67 | B82: W14x665 | C82: W360xx990 | D82: 665 | E82: 196 | F82: 12400 | G82: 1150 | H82: 7.98 | I82: 1480 | J82: 4170 | K82: 472 | L82: 4.62 | M82: 730 | N82: 1120 | O82: 306000 | P82: 21.64 | Q82: 17.65 | R82: 4.52 | S82: 2.83 | T82: 5.19 | U82: 2.06 | V82: 9.02 | W82: 88
A83: W16x57 | B83: W14x68 | C83: W360x101 | D83: 68 | E83: 20 | F83: 723 | G83: 103 | H83: 6.01 | I83: 115 | J83: 121 | K83: 24.2 | L83: 2.46 | M83: 36.9 | N83: 3.02 | O83: 5370 | P83: 14.04 | Q83: 10.04 | R83: 0.72 | S83: 0.41 | T83: 1.5 | U83: 0.94 | V83: 5.62 | W83: 113
A84: W16x50 | B84: W14x730 | C84: W360x1086 | D84: 730 | E84: 215 | F84: 14300 | G84: 1280 | H84: 8.17 | I84: 1660 | J84: 4720 | K84: 527 | L84: 4.69 | M84: 816 | N84: 1450 | O84: 362000 | P84: 22.42 | Q84: 17.89 | R84: 4.91 | S84: 3.07 | T84: 5.56 | U84: 2.19 | V84: 9.19 | W84: 87
A85: W16x45 | B85: W14x74 | C85: W360x110 | D85: 74 | E85: 21.8 | F85: 796 | G85: 112 | H85: 6.04 | I85: 126 | J85: 134 | K85: 26.6 | L85: 2.48 | M85: 40.6 | N85: 3.88 | O85: 6000 | P85: 14.17 | Q85: 10.07 | R85: 0.79 | S85: 0.45 | T85: 1.56 | U85: 0.94 | V85: 5.64 | W85: 112
A86: W16x40 | B86: W14x82 | C86: W360x122 | D86: 82 | E86: 24.1 | F86: 882 | G86: 123 | H86: 6.05 | I86: 139 | J86: 148 | K86: 29.3 | L86: 2.48 | M86: 44.8 | N86: 5.08 | O86: 6700 | P86: 14.31 | Q86: 10.13 | R86: 0.85 | S86: 0.51 | T86: 1.63 | U86: 1 | V86: 5.68 | W86: 111
A87: W16x36 | B87: W14x90 | C87: W360x134 | D87: 90 | E87: 26.5 | F87: 999 | G87: 143 | H87: 6.14 | I87: 157 | J87: 362 | K87: 49.9 | L87: 3.7 | M87: 75.6 | N87: 4.06 | O87: 16000 | P87: 14.02 | Q87: 14.52 | R87: 0.71 | S87: 0.44 | T87: 1.38 | U87: 0.88 | V87: 7.1 | W87: 110
A88: W16x31 | B88: W14x99 | C88: W360x147 | D88: 99 | E88: 29.1 | F88: 1110 | G88: 157 | H88: 6.17 | I88: 173 | J88: 402 | K88: 55.2 | L88: 3.71 | M88: 83.6 | N88: 5.37 | O88: 18000 | P88: 14.16 | Q88: 14.56 | R88: 0.78 | S88: 0.48 | T88: 1.44 | U88: 0.88 | V88: 7.13 | W88: 109
A89: W16x26 | B89: W16x100 | C89: W410x149 | D89: 100 | E89: 29.4 | F89: 1490 | G89: 175 | H89: 7.1 | I89: 198 | J89: 186 | K89: 35.7 | L89: 2.51 | M89: 54.9 | N89: 7.73 | O89: 11900 | P89: 16.97 | Q89: 10.43 | R89: 0.98 | S89: 0.58 | T89: 1.69 | U89: 0.94 | V89: 6.21 | W89: 76
A90: W14x730 | B90: W16x26 | C90: W410x39 | D90: 26 | E90: 7.68 | F90: 301 | G90: 38.4 | H90: 6.26 | I90: 44.2 | J90: 9.6 | K90: 3.5 | L90: 1.12 | M90: 5.5 | N90: 0.26 | O90: 565 | P90: 15.69 | Q90: 5.5 | R90: 0.34 | S90: 0.25 | T90: 1.06 | U90: 0.75 | V90: 4.41 | W90: 86
A91: W14x665 | B91: W16x31 | C91: W410x46 | D91: 31 | E91: 9.12 | F91: 375 | G91: 47.2 | H91: 6.41 | I91: 54 | J91: 12.4 | K91: 4.5 | L91: 1.17 | M91: 7 | N91: 0.46 | O91: 739 | P91: 15.88 | Q91: 5.53 | R91: 0.44 | S91: 0.28 | T91: 1.13 | U91: 0.75 | V91: 4.44 | W91: 85
A92: W14x605 | B92: W16x36 | C92: W410x54 | D92: 36 | E92: 10.6 | F92: 448 | G92: 56.5 | H92: 6.51 | I92: 64 | J92: 24.5 | K92: 7 | L92: 1.52 | M92: 10.8 | N92: 0.54 | O92: 1460 | P92: 15.86 | Q92: 6.99 | R92: 0.43 | S92: 0.29 | T92: 1.13 | U92: 0.75 | V92: 4.92 | W92: 84
A93: W14x550 | B93: W16x40 | C93: W410x60 | D93: 40 | E93: 11.8 | F93: 518 | G93: 64.7 | H93: 6.63 | I93: 72.9 | J93: 28.9 | K93: 8.3 | L93: 1.57 | M93: 12.7 | N93: 0.79 | O93: 1740 | P93: 16.01 | Q93: 7 | R93: 0.51 | S93: 0.3 | T93: 1.19 | U93: 0.81 | V93: 4.95 | W93: 83
A94: W14x500 | B94: W16x45 | C94: W410x67 | D94: 45 | E94: 13.3 | F94: 586 | G94: 72.7 | H94: 6.65 | I94: 82.3 | J94: 32.8 | K94: 9.3 | L94: 1.57 | M94: 14.5 | N94: 1.11 | O94: 1990 | P94: 16.13 | Q94: 7.04 | R94: 0.56 | S94: 0.34 | T94: 1.25 | U94: 0.81 | V94: 4.98 | W94: 82
A95: W14x455 | B95: W16x50 | C95: W410x74 | D95: 50 | E95: 14.7 | F95: 659 | G95: 81 | H95: 6.68 | I95: 92 | J95: 37.2 | K95: 10.5 | L95: 1.59 | M95: 16.3 | N95: 1.52 | O95: 2270 | P95: 16.26 | Q95: 7.07 | R95: 0.63 | S95: 0.38 | T95: 1.31 | U95: 0.81 | V95: 5 | W95: 81
A96: W14x426 | B96: W16x57 | C96: W410x85 | D96: 57 | E96: 16.8 | F96: 758 | G96: 92.2 | H96: 6.72 | I96: 105 | J96: 43.1 | K96: 12.1 | L96: 1.6 | M96: 18.9 | N96: 2.22 | O96: 2660 | P96: 16.43 | Q96: 7.12 | R96: 0.71 | S96: 0.43 | T96: 1.38 | U96: 0.88 | V96: 5.04 | W96: 80
A97: W14x398 | B97: W16x67 | C97: W410x100 | D97: 67 | E97: 19.7 | F97: 954 | G97: 117 | H97: 6.96 | I97: 130 | J97: 119 | K97: 23.2 | L97: 2.46 | M97: 35.5 | N97: 2.39 | O97: 7300 | P97: 16.33 | Q97: 10.23 | R97: 0.67 | S97: 0.4 | T97: 1.38 | U97: 0.81 | V97: 6.07 | W97: 79
A98: W14x370 | B98: W16x77 | C98: W410x114 | D98: 77 | E98: 22.6 | F98: 1110 | G98: 134 | H98: 7 | I98: 150 | J98: 138 | K98: 26.9 | L98: 2.47 | M98: 41.1 | N98: 3.57 | O98: 8570 | P98: 16.52 | Q98: 10.29 | R98: 0.76 | S98: 0.46 | T98: 1.44 | U98: 0.88 | V98: 6.11 | W98: 78
A99: W14x342 | B99: W16x89 | C99: W410x132 | D99: 89 | E99: 26.2 | F99: 1300 | G99: 155 | H99: 7.05 | I99: 175 | J99: 163 | K99: 31.4 | L99: 2.49 | M99: 48.1 | N99: 5.45 | O99: 10300 | P99: 16.75 | Q99: 10.37 | R99: 0.88 | S99: 0.53 | T99: 1.56 | U99: 0.88 | V99: 6.16 | W99: 77
A100: W14x311 | B100: W18x106 | C100: W460x158 | D100: 106 | E100: 31.1 | F100: 1910 | G100: 204 | H100: 7.84 | I100: 230 | J100: 220 | K100: 39.4 | L100: 2.66 | M100: 60.5 | N100: 7.48 | O100: 17400 | P100: 18.73 | Q100: 11.2 | R100: 0.94 | S100: 0.59 | T100: 1.63 | U100: 0.94 | V100: 6.76 | W100: 62
A101: W14x283 | B101: W18x119 | C101: W460x177 | D101: 119 | E101: 35.1 | F101: 2190 | G101: 231 | H101: 7.9 | I101: 261 | J101: 253 | K101: 44.9 | L101: 2.69 | M101: 69.1 | N101: 10.6 | O101: 20300 | P101: 18.97 | Q101: 11.27 | R101: 1.06 | S101: 0.66 | T101: 1.75 | U101: 0.94 | V101: 6.81 | W101: 61
A102: W14x257 | B102: W18x35 | C102: W460x52 | D102: 35 | E102: 10.3 | F102: 510 | G102: 57.6 | H102: 7.04 | I102: 66.5 | J102: 15.3 | K102: 5.1 | L102: 1.22 | M102: 8.1 | N102: 0.51 | O102: 1140 | P102: 17.7 | Q102: 6 | R102: 0.42 | S102: 0.3 | T102: 1.13 | U102: 0.75 | V102: 4.9 | W102: 75
A103: W14x233 | B103: W18x40 | C103: W460x60 | D103: 40 | E103: 11.8 | F103: 612 | G103: 68.4 | H103: 7.21 | I103: 78.4 | J103: 19.1 | K103: 6.3 | L103: 1.27 | M103: 9.9 | N103: 0.81 | O103: 1440 | P103: 17.9 | Q103: 6.01 | R103: 0.53 | S103: 0.32 | T103: 1.19 | U103: 0.81 | V103: 4.94 | W103: 74
A104: W14x211 | B104: W18x41 | C104: W460x61 | D104: 41 | E104: 12.1 | F104: 623 | G104: 70.4 | H104: 7.18 | I104: 80.1 | J104: 29.3 | K104: 7.9 | L104: 1.56 | M104: 12.3 | N104: 0.7 | O104: 2190 | P104: 17.7 | Q104: 7.45 | R104: 0.42 | S104: 0.32 | T104: 1.19 | U104: 0.81 | V104: 5.38 | W104: 72
A105: W14x193 | B105: W18x45 | C105: W460x67 | D105: 45 | E105: 13.4 | F105: 719 | G105: 80.5 | H105: 7.33 | I105: 91.3 | J105: 34.8 | K105: 9.3 | L105: 1.61 | M105: 14.5 | N105: 0.99 | O105: 2620 | P105: 17.86 | Q105: 7.48 | R105: 0.5 | S105: 0.34 | T105: 1.25 | U105: 0.81 | V105: 5.41 | W105: 71
A106: W14x176 | B106: W18x46 | C106: W460x68 | D106: 46 | E106: 13.5 | F106: 712 | G106: 78.8 | H106: 7.25 | I106: 90.7 | J106: 22.5 | K106: 7.4 | L106: 1.29 | M106: 11.7 | N106: 1.22 | O106: 1710 | P106: 18.06 | Q106: 6.06 | R106: 0.6 | S106: 0.36 | T106: 1.25 | U106: 0.81 | V106: 4.97 | W106: 73
A107: W14x159 | B107: W18x50 | C107: W460x74 | D107: 50 | E107: 14.7 | F107: 800 | G107: 88.9 | H107: 7.38 | I107: 101 | J107: 40.1 | K107: 10.7 | L107: 1.65 | M107: 16.6 | N107: 1.24 | O107: 3040 | P107: 17.99 | Q107: 7.5 | R107: 0.57 | S107: 0.35 | T107: 1.25 | U107: 0.81 | V107: 5.44 | W107: 70
A108: W14x145 | B108: W18x55 | C108: W460x82 | D108: 55 | E108: 16.2 | F108: 890 | G108: 98.3 | H108: 7.41 | I108: 112 | J108: 44.9 | K108: 11.9 | L108: 1.67 | M108: 18.5 | N108: 1.66 | O108: 3430 | P108: 18.11 | Q108: 7.53 | R108: 0.63 | S108: 0.39 | T108: 1.31 | U108: 0.81 | V108: 5.46 | W108: 69
A109: W14x132 | B109: W18x60 | C109: W460x89 | D109: 60 | E109: 17.6 | F109: 984 | G109: 108 | H109: 7.47 | I109: 123 | J109: 50.1 | K109: 13.3 | L109: 1.69 | M109: 20.6 | N109: 2.17 | O109: 3860 | P109: 18.24 | Q109: 7.55 | R109: 0.69 | S109: 0.41 | T109: 1.38 | U109: 0.81 | V109: 5.49 | W109: 68
A110: W14x120 | B110: W18x65 | C110: W460x97 | D110: 65 | E110: 19.1 | F110: 1070 | G110: 117 | H110: 7.49 | I110: 133 | J110: 54.8 | K110: 14.4 | L110: 1.69 | M110: 22.5 | N110: 2.73 | O110: 4240 | P110: 18.35 | Q110: 7.59 | R110: 0.75 | S110: 0.45 | T110: 1.44 | U110: 0.88 | V110: 5.51 | W110: 67
A111: W14x109 | B111: W18x71 | C111: W460x106 | D111: 71 | E111: 20.8 | F111: 1170 | G111: 127 | H111: 7.5 | I111: 145 | J111: 60.3 | K111: 15.8 | L111: 1.7 | M111: 24.7 | N111: 3.48 | O111: 4700 | P111: 18.47 | Q111: 7.63 | R111: 0.81 | S111: 0.49 | T111: 1.5 | U111: 0.88 | V111: 5.54 | W111: 66
A112: W14x99 | B112: W18x76 | C112: W460x113 | D112: 76 | E112: 22.3 | F112: 1330 | G112: 146 | H112: 7.73 | I112: 163 | J112: 152 | K112: 27.6 | L112: 2.61 | M112: 42.2 | N112: 2.83 | O112: 11700 | P112: 18.21 | Q112: 11.04 | R112: 0.68 | S112: 0.42 | T112: 1.38 | U112: 0.81 | V112: 6.64 | W112: 65
A113: W14x90 | B113: W18x86 | C113: W460x128 | D113: 86 | E113: 25.3 | F113: 1530 | G113: 166 | H113: 7.77 | I113: 186 | J113: 175 | K113: 31.6 | L113: 2.63 | M113: 48.4 | N113: 4.1 | O113: 13600 | P113: 18.39 | Q113: 11.09 | R113: 0.77 | S113: 0.48 | T113: 1.44 | U113: 0.88 | V113: 6.68 | W113: 64
A114: W14x82 | B114: W18x97 | C114: W460x144 | D114: 97 | E114: 28.5 | F114: 1750 | G114: 188 | H114: 7.82 | I114: 211 | J114: 201 | K114: 36.1 | L114: 2.65 | M114: 55.3 | N114: 5.86 | O114: 15800 | P114: 18.59 | Q114: 11.14 | R114: 0.87 | S114: 0.54 | T114: 1.56 | U114: 0.88 | V114: 6.72 | W114: 63
A115: W14x74 | B115: W21x101 | C115: W530x150 | D115: 101 | E115: 29.8 | F115: 2420 | G115: 227 | H115: 9.02 | I115: 253 | J115: 248 | K115: 40.3 | L115: 2.89 | M115: 61.7 | N115: 5.21 | O115: 26200 | P115: 21.36 | Q115: 12.29 | R115: 0.8 | S115: 0.5 | T115: 1.56 | U115: 0.94 | V115: 7.57 | W115: 50
A116: W14x68 | B116: W21x111 | C116: W530x165 | D116: 111 | E116: 32.7 | F116: 2670 | G116: 249 | H116: 9.05 | I116: 279 | J116: 274 | K116: 44.5 | L116: 2.9 | M116: 68.2 | N116: 6.83 | O116: 29200 | P116: 21.51 | Q116: 12.34 | R116: 0.88 | S116: 0.55 | T116: 1.63 | U116: 0.94 | V116: 7.61 | W116: 49
A117: W14x61 | B117: W21x122 | C117: W530x182 | D117: 122 | E117: 35.9 | F117: 2960 | G117: 273 | H117: 9.09 | I117: 307 | J117: 305 | K117: 49.2 | L117: 2.92 | M117: 75.6 | N117: 8.98 | O117: 32700 | P117: 21.68 | Q117: 12.39 | R117: 0.96 | S117: 0.6 | T117: 1.69 | U117: 1 | V117: 7.64 | W117: 48
A118: W14x53 | B118: W21x132 | C118: W530x196 | D118: 132 | E118: 38.8 | F118: 3220 | G118: 295 | H118: 9.12 | I118: 333 | J118: 333 | K118: 53.5 | L118: 2.93 | M118: 82.3 | N118: 11.3 | O118: 36000 | P118: 21.83 | Q118: 12.44 | R118: 1.03 | S118: 0.65 | T118: 1.81 | U118: 1 | V118: 7.68 | W118: 47
A119: W14x48 | B119: W21x147 | C119: W530x219 | D119: 147 | E119: 43.2 | F119: 3630 | G119: 329 | H119: 9.17 | I119: 373 | J119: 376 | K119: 60.1 | L119: 2.95 | M119: 92.6 | N119: 15.4 | O119: 41100 | P119: 22.06 | Q119: 12.51 | R119: 1.15 | S119: 0.72 | T119: 1.88 | U119: 1.06 | V119: 7.73 | W119: 46
A120: W14x43 | B120: W21x44 | C120: W530x66 | D120: 44 | E120: 13 | F120: 843 | G120: 81.6 | H120: 8.06 | I120: 95.4 | J120: 20.7 | K120: 6.4 | L120: 1.26 | M120: 10.2 | N120: 0.77 | O120: 2110 | P120: 20.66 | Q120: 6.5 | R120: 0.45 | S120: 0.35 | T120: 1.19 | U120: 0.88 | V120: 5.55 | W120: 60
A121: W14x38 | B121: W21x48 | C121: W530x72 | D121: 48 | E121: 14.2 | F121: 963.4 | G121: 93.4 | H121: 8.23 | I121: 107.4 | J121: 38.9 | K121: 9.5 | L121: 1.65 | M121: 15 | N121: 0.82 | O121: 3947 | P121: 20.63 | Q121: 8.15 | R121: 0.43 | S121: 0.35 | T121: 1.06 | U121: 0.75 | V121: 6.1 | W121: 57
A122: W14x34 | B122: W21x50 | C122: W530x74 | D122: 50 | E122: 14.7 | F122: 984 | G122: 94.5 | H122: 8.18 | I122: 110 | J122: 24.9 | K122: 7.6 | L122: 1.3 | M122: 12.2 | N122: 1.14 | O122: 2560 | P122: 20.83 | Q122: 6.53 | R122: 0.54 | S122: 0.38 | T122: 1.31 | U122: 0.88 | V122: 5.58 | W122: 59
A123: W14x30 | B123: W21x55 | C123: W530x82 | D123: 55 | E123: 16.3 | F123: 1150 | G123: 111 | H123: 8.4 | I123: 126 | J123: 48.3 | K123: 11.8 | L123: 1.72 | M123: 18.4 | N123: 1.27 | O123: 4970 | P123: 20.8 | Q123: 8.22 | R123: 0.52 | S123: 0.38 | T123: 1.25 | U123: 0.88 | V123: 6.14 | W123: 56
A124: W14x26 | B124: W21x57 | C124: W530x85 | D124: 57 | E124: 16.7 | F124: 1170 | G124: 111 | H124: 8.36 | I124: 129 | J124: 30.6 | K124: 9.3 | L124: 1.35 | M124: 14.8 | N124: 1.77 | O124: 3190 | P124: 21.06 | Q124: 6.55 | R124: 0.65 | S124: 0.41 | T124: 1.38 | U124: 0.88 | V124: 5.63 | W124: 58
A125: W14x22 | B125: W21x62 | C125: W530x92 | D125: 62 | E125: 18.3 | F125: 1330 | G125: 127 | H125: 8.54 | I125: 144 | J125: 57.5 | K125: 13.9 | L125: 1.77 | M125: 21.7 | N125: 1.83 | O125: 5970 | P125: 20.99 | Q125: 8.24 | R125: 0.61 | S125: 0.4 | T125: 1.38 | U125: 0.88 | V125: 6.18 | W125: 55
A126: W12x336 | B126: W21x68 | C126: W530x101 | D126: 68 | E126: 20 | F126: 1480 | G126: 140 | H126: 8.6 | I126: 160 | J126: 64.7 | K126: 15.7 | L126: 1.8 | M126: 24.4 | N126: 2.45 | O126: 6760 | P126: 21.13 | Q126: 8.27 | R126: 0.69 | S126: 0.43 | T126: 1.44 | U126: 0.88 | V126: 6.21 | W126: 54
A127: W12x305 | B127: W21x73 | C127: W530x109 | D127: 73 | E127: 21.5 | F127: 1600 | G127: 151 | H127: 8.64 | I127: 172 | J127: 70.6 | K127: 17 | L127: 1.81 | M127: 26.6 | N127: 3.02 | O127: 7420 | P127: 21.24 | Q127: 8.29 | R127: 0.74 | S127: 0.46 | T127: 1.5 | U127: 0.94 | V127: 6.23 | W127: 53
A128: W12x279 | B128: W21x83 | C128: W530x123 | D128: 83 | E128: 24.3 | F128: 1830 | G128: 171 | H128: 8.67 | I128: 196 | J128: 81.4 | K128: 19.5 | L128: 1.83 | M128: 30.5 | N128: 4.34 | O128: 8630 | P128: 21.43 | Q128: 8.36 | R128: 0.83 | S128: 0.52 | T128: 1.56 | U128: 0.94 | V128: 6.27 | W128: 52
A129: W12x252 | B129: W21x93 | C129: W530x138 | D129: 93 | E129: 27.3 | F129: 2070 | G129: 192 | H129: 8.7 | I129: 221 | J129: 92.9 | K129: 22.1 | L129: 1.84 | M129: 34.7 | N129: 6.03 | O129: 9940 | P129: 21.62 | Q129: 8.42 | R129: 0.93 | S129: 0.58 | T129: 1.69 | U129: 1 | V129: 6.31 | W129: 51
A130: W12x230 | B130: W24x104 | C130: W610x155 | D130: 104 | E130: 30.6 | F130: 3100 | G130: 258 | H130: 10.1 | I130: 289 | J130: 259 | K130: 40.7 | L130: 2.91 | M130: 62.4 | N130: 4.72 | O130: 35200 | P130: 24.06 | Q130: 12.75 | R130: 0.75 | S130: 0.5 | T130: 1.5 | U130: 1 | V130: 8.18 | W130: 39
A131: W12x210 | B131: W24x117 | C131: W610x174 | D131: 117 | E131: 34.4 | F131: 3540 | G131: 291 | H131: 10.1 | I131: 327 | J131: 297 | K131: 46.5 | L131: 2.94 | M131: 71.4 | N131: 6.72 | O131: 40700 | P131: 24.26 | Q131: 12.8 | R131: 0.85 | S131: 0.55 | T131: 1.63 | U131: 1 | V131: 8.22 | W131: 38
A132: W12x190 | B132: W24x131 | C132: W610x195 | D132: 131 | E132: 38.5 | F132: 4020 | G132: 329 | H132: 10.2 | I132: 370 | J132: 340 | K132: 53 | L132: 2.97 | M132: 81.5 | N132: 9.5 | O132: 47000 | P132: 24.48 | Q132: 12.86 | R132: 0.96 | S132: 0.6 | T132: 1.75 | U132: 1.06 | V132: 8.26 | W132: 37
A133: W12x170 | B133: W24x146 | C133: W610x217 | D133: 146 | E133: 43 | F133: 4580 | G133: 371 | H133: 10.3 | I133: 418 | J133: 391 | K133: 60.5 | L133: 3.01 | M133: 93.2 | N133: 13.4 | O133: 54700 | P133: 24.74 | Q133: 12.9 | R133: 1.09 | S133: 0.65 | T133: 1.88 | U133: 1.06 | V133: 8.31 | W133: 36
A134: W12x152 | B134: W24x162 | C134: W610x241 | D134: 162 | E134: 47.7 | F134: 5170 | G134: 414 | H134: 10.4 | I134: 468 | J134: 443 | K134: 68.4 | L134: 3.05 | M134: 105 | N134: 18.5 | O134: 62600 | P134: 25 | Q134: 12.96 | R134: 1.22 | S134: 0.7 | T134: 2 | U134: 1.06 | V134: 8.37 | W134: 35
A135: W12x136 | B135: W24x55 | C135: W610x82 | D135: 55 | E135: 16.2 | F135: 1350 | G135: 115 | H135: 9.13 | I135: 134 | J135: 29.1 | K135: 8.3 | L135: 1.34 | M135: 13.3 | N135: 1.18 | O135: 3870 | P135: 23.57 | Q135: 7.01 | R135: 0.51 | S135: 0.4 | T135: 1.31 | U135: 0.94 | V135: 6.2 | W135: 45
A136: W12x120 | B136: W24x62 | C136: W610x92 | D136: 62 | E136: 18.2 | F136: 1550 | G136: 131 | H136: 9.23 | I136: 153 | J136: 34.5 | K136: 9.8 | L136: 1.38 | M136: 15.7 | N136: 1.71 | O136: 4620 | P136: 23.74 | Q136: 7.04 | R136: 0.59 | S136: 0.43 | T136: 1.38 | U136: 0.94 | V136: 6.23 | W136: 44
A137: W12x106 | B137: W24x68 | C137: W610x101 | D137: 68 | E137: 20.1 | F137: 1830 | G137: 154 | H137: 9.55 | I137: 177 | J137: 70.4 | K137: 15.7 | L137: 1.87 | M137: 24.5 | N137: 1.87 | O137: 9430 | P137: 23.73 | Q137: 8.96 | R137: 0.58 | S137: 0.41 | T137: 1.38 | U137: 0.94 | V137: 6.87 | W137: 43
A138: W12x96 | B138: W24x76 | C138: W610x113 | D138: 76 | E138: 22.4 | F138: 2100 | G138: 176 | H138: 9.69 | I138: 200 | J138: 82.5 | K138: 18.4 | L138: 1.92 | M138: 28.6 | N138: 2.68 | O138: 11100 | P138: 23.92 | Q138: 8.99 | R138: 0.68 | S138: 0.44 | T138: 1.44 | U138: 0.94 | V138: 6.91 | W138: 42
A139: W12x87 | B139: W24x84 | C139: W610x125 | D139: 84 | E139: 24.7 | F139: 2370 | G139: 196 | H139: 9.79 | I139: 224 | J139: 94.4 | K139: 20.9 | L139: 1.95 | M139: 32.6 | N139: 3.7 | O139: 12800 | P139: 24.1 | Q139: 9.02 | R139: 0.77 | S139: 0.47 | T139: 1.56 | U139: 0.94 | V139: 6.94 | W139: 41
A140: W12x79 | B140: W24x94 | C140: W610x140 | D140: 94 | E140: 27.7 | F140: 2700 | G140: 222 | H140: 9.87 | I140: 254 | J140: 109 | K140: 24 | L140: 1.98 | M140: 37.5 | N140: 5.26 | O140: 15000 | P140: 24.31 | Q140: 9.06 | R140: 0.88 | S140: 0.52 | T140: 1.63 | U140: 1 | V140: 6.99 | W140: 40
A141: W12x72 | B141: W27x102 | C141: W690x152 | D141: 102 | E141: 30 | F141: 3620 | G141: 267 | H141: 11 | I141: 305 | J141: 139 | K141: 27.8 | L141: 2.15 | M141: 43.4 | N141: 5.29 | O141: 24000 | P141: 27.09 | Q141: 10.02 | R141: 0.83 | S141: 0.52 | T141: 1.56 | U141: 0.94 | V141: 7.77 | W141: 32
A142: W12x65 | B142: W27x114 | C142: W690x170 | D142: 114 | E142: 33.5 | F142: 4090 | G142: 299 | H142: 11 | I142: 343 | J142: 159 | K142: 31.5 | L142: 2.18 | M142: 49.3 | N142: 7.33 | O142: 27600 | P142: 27.29 | Q142: 10.07 | R142: 0.93 | S142: 0.57 | T142: 1.63 | U142: 0.94 | V142: 7.81 | W142: 31
A143: W12x58 | B143: W27x146 | C143: W690x217 | D143: 146 | E143: 42.9 | F143: 5630 | G143: 411 | H143: 11.4 | I143: 461 | J143: 443 | K143: 63.5 | L143: 3.21 | M143: 97.5 | N143: 10.9 | O143: 77200 | P143: 27.38 | Q143: 13.96 | R143: 0.97 | S143: 0.6 | T143: 1.69 | U143: 1 | V143: 9.12 | W143: 30
A144: W12x53 | B144: W27x161 | C144: W690x240 | D144: 161 | E144: 47.4 | F144: 6280 | G144: 455 | H144: 11.5 | I144: 512 | J144: 497 | K144: 70.9 | L144: 3.24 | M144: 109 | N144: 14.7 | O144: 87300 | P144: 27.59 | Q144: 14.02 | R144: 1.08 | S144: 0.66 | T144: 1.81 | U144: 1 | V144: 9.16 | W144: 29
A145: W12x50 | B145: W27x178 | C145: W690x265 | D145: 178 | E145: 52.3 | F145: 6990 | G145: 502 | H145: 11.6 | I145: 567 | J145: 555 | K145: 78.8 | L145: 3.26 | M145: 122 | N145: 19.5 | O145: 98300 | P145: 27.81 | Q145: 14.09 | R145: 1.19 | S145: 0.72 | T145: 1.88 | U145: 1.06 | V145: 9.21 | W145: 28
A146: W12x45 | B146: W27x84 | C146: W690x125 | D146: 84 | E146: 24.8 | F146: 2850 | G146: 213 | H146: 10.7 | I146: 244 | J146: 106 | K146: 21.2 | L146: 2.07 | M146: 33.2 | N146: 2.81 | O146: 18000 | P146: 26.71 | Q146: 9.96 | R146: 0.64 | S146: 0.46 | T146: 1.38 | U146: 0.94 | V146: 7.69 | W146: 34
A147: W12x40 | B147: W27x94 | C147: W690x140 | D147: 94 | E147: 27.7 | F147: 3270 | G147: 243 | H147: 10.9 | I147: 278 | J147: 124 | K147: 24.8 | L147: 2.12 | M147: 38.8 | N147: 4.03 | O147: 21200 | P147: 26.92 | Q147: 9.99 | R147: 0.74 | S147: 0.49 | T147: 1.44 | U147: 0.94 | V147: 7.73 | W147: 33
A148: W12x35 | B148: W30x108 | C148: W760x161 | D148: 108 | E148: 31.7 | F148: 4470 | G148: 299 | H148: 11.9 | I148: 346 | J148: 146 | K148: 27.9 | L148: 2.15 | M148: 43.9 | N148: 4.99 | O148: 30800 | P148: 29.83 | Q148: 10.47 | R148: 0.76 | S148: 0.55 | T148: 1.56 | U148: 1 | V148: 8.37 | W148: 26
A149: W12x30 | B149: W30x116 | C149: W760x173 | D149: 116 | E149: 34.2 | F149: 4930 | G149: 329 | H149: 12 | I149: 378 | J149: 164 | K149: 31.3 | L149: 2.19 | M149: 49.2 | N149: 6.43 | O149: 34900 | P149: 30.01 | Q149: 10.49 | R149: 0.85 | S149: 0.56 | T149: 1.63 | U149: 1 | V149: 8.41 | W149: 25
A150: W12x26 | B150: W30x124 | C150: W760x185 | D150: 124 | E150: 36.5 | F150: 5360 | G150: 355 | H150: 12.1 | I150: 408 | J150: 181 | K150: 34.4 | L150: 2.23 | M150: 54 | N150: 7.99 | O150: 38700 | P150: 30.17 | Q150: 10.52 | R150: 0.93 | S150: 0.58 | T150: 1.69 | U150: 1 | V150: 8.44 | W150: 24
A151: W12x21 | B151: W30x132 | C151: W760x196 | D151: 132 | E151: 38.9 | F151: 5770 | G151: 380 | H151: 12.2 | I151: 437 | J151: 196 | K151: 37.2 | L151: 2.25 | M151: 58.4 | N151: 9.72 | O151: 42100 | P151: 30.31 | Q151: 10.54 | R151: 1 | S151: 0.61 | T151: 1.75 | U151: 1.06 | V151: 8.46 | W151: 23
A152: W12x22 | B152: W30x173 | C152: W760x257 | D152: 173 | E152: 50.8 | F152: 8200 | G152: 539 | H152: 12.7 | I152: 605 | J152: 598 | K152: 79.8 | L152: 3.43 | M152: 123 | N152: 15.3 | O152: 129000 | P152: 30.44 | Q152: 14.98 | R152: 1.06 | S152: 0.66 | T152: 1.88 | U152: 1.06 | V152: 9.96 | W152: 22
A153: W12x19 | B153: W30x191 | C153: W760x284 | D153: 191 | E153: 56.1 | F153: 9170 | G153: 598 | H153: 12.8 | I153: 673 | J153: 673 | K153: 89.5 | L153: 3.46 | M153: 138 | N153: 20.6 | O153: 146000 | P153: 30.68 | Q153: 15.04 | R153: 1.19 | S153: 0.71 | T153: 1.94 | U153: 1.06 | V153: 10 | W153: 21
A154: W12x16 | B154: W30x211 | C154: W760x314 | D154: 211 | E154: 62 | F154: 10300 | G154: 663 | H154: 12.9 | I154: 749 | J154: 757 | K154: 100 | L154: 3.49 | M154: 154 | N154: 27.9 | O154: 166000 | P154: 30.94 | Q154: 15.11 | R154: 1.31 | S154: 0.78 | T154: 2.13 | U154: 1.13 | V154: 10.1 | W154: 20
A155: W12x14 | B155: W30x99 | C155: W760x147 | D155: 99 | E155: 29.1 | F155: 3990 | G155: 269 | H155: 11.7 | I155: 312 | J155: 128 | K155: 24.5 | L155: 2.1 | M155: 38.6 | N155: 3.77 | O155: 26900 | P155: 29.65 | Q155: 10.45 | R155: 0.67 | S155: 0.52 | T155: 1.44 | U155: 1 | V155: 8.34 | W155: 27
A156: W10x112 | B156: W33x118 | C156: W840x176 | D156: 118 | E156: 34.7 | F156: 5900 | G156: 359 | H156: 13 | I156: 415 | J156: 187 | K156: 32.6 | L156: 2.32 | M156: 51.3 | N156: 5.3 | O156: 48200 | P156: 32.86 | Q156: 11.48 | R156: 0.74 | S156: 0.55 | T156: 1.56 | U156: 1.06 | V156: 9.21 | W156: 19
A157: W10x100 | B157: W33x130 | C157: W840x193 | D157: 130 | E157: 38.3 | F157: 6710 | G157: 406 | H157: 13.2 | I157: 467 | J157: 218 | K157: 37.9 | L157: 2.39 | M157: 59.5 | N157: 7.37 | O157: 56600 | P157: 33.09 | Q157: 11.51 | R157: 0.85 | S157: 0.58 | T157: 1.69 | U157: 1.06 | V157: 9.25 | W157: 18
A158: W10x88 | B158: W33x141 | C158: W840x210 | D158: 141 | E158: 41.6 | F158: 7450 | G158: 448 | H158: 13.4 | I158: 514 | J158: 246 | K158: 42.7 | L158: 2.43 | M158: 66.9 | N158: 9.7 | O158: 64300 | P158: 33.3 | Q158: 11.54 | R158: 0.96 | S158: 0.6 | T158: 1.75 | U158: 1.06 | V158: 9.29 | W158: 17
A159: W10x77 | B159: W33x152 | C159: W840x226 | D159: 152 | E159: 44.7 | F159: 8160 | G159: 487 | H159: 13.5 | I159: 559 | J159: 273 | K159: 47.2 | L159: 2.47 | M159: 73.9 | N159: 12.4 | O159: 71800 | P159: 33.49 | Q159: 11.56 | R159: 1.05 | S159: 0.64 | T159: 1.88 | U159: 1.13 | V159: 9.33 | W159: 16
A160: W10x68 | B160: W33x201 | C160: W840x299 | D160: 201 | E160: 59.1 | F160: 11500 | G160: 684 | H160: 14 | I160: 772 | J160: 749 | K160: 95.2 | L160: 3.56 | M160: 147 | N160: 20.5 | O160: 198000 | P160: 33.68 | Q160: 15.74 | R160: 1.15 | S160: 0.71 | T160: 1.94 | U160: 1.13 | V160: 10.7 | W160: 15
A161: W10x60 | B161: W33x221 | C161: W840x329 | D161: 221 | E161: 65 | F161: 12800 | G161: 757 | H161: 14.1 | I161: 855 | J161: 840 | K161: 106 | L161: 3.59 | M161: 164 | N161: 27.5 | O161: 224000 | P161: 33.93 | Q161: 15.8 | R161: 1.27 | S161: 0.78 | T161: 2.06 | U161: 1.19 | V161: 10.8 | W161: 14
A162: W10x54 | B162: W33x241 | C162: W840x359 | D162: 241 | E162: 70.9 | F162: 14200 | G162: 829 | H162: 14.1 | I162: 939 | J162: 932 | K162: 118 | L162: 3.63 | M162: 182 | N162: 35.8 | O162: 250000 | P162: 34.18 | Q162: 15.86 | R162: 1.4 | S162: 0.83 | T162: 2.19 | U162: 1.19 | V162: 10.8 | W162: 13
A163: W10x49 | B163: W36x135 | C163: W920x201 | D163: 135 | E163: 39.7 | F163: 7800 | G163: 439 | H163: 14 | I163: 509 | J163: 225 | K163: 37.7 | L163: 2.38 | M163: 59.7 | N163: 6.99 | O163: 68000 | P163: 35.55 | Q163: 11.95 | R163: 0.79 | S163: 0.6 | T163: 1.69 | U163: 1.13 | V163: 9.81 | W163: 12
A164: W10x45 | B164: W36x150 | C164: W920x223 | D164: 150 | E164: 44.2 | F164: 9040 | G164: 504 | H164: 14.3 | I164: 581 | J164: 270 | K164: 45.1 | L164: 2.47 | M164: 70.9 | N164: 10.1 | O164: 82300 | P164: 35.85 | Q164: 11.97 | R164: 0.94 | S164: 0.63 | T164: 1.88 | U164: 1.13 | V164: 9.86 | W164: 11
A165: W10x39 | B165: W36x160 | C165: W920x238 | D165: 160 | E165: 47 | F165: 9750 | G165: 542 | H165: 14.4 | I165: 624 | J165: 295 | K165: 49.1 | L165: 2.5 | M165: 77.3 | N165: 12.4 | O165: 90300 | P165: 36.01 | Q165: 12 | R165: 0.02 | S165: 0.65 | T165: 1.94 | U165: 1.13 | V165: 9.89 | W165: 10
A166: W10x33 | B166: W36x170 | C166: W920x253 | D166: 170 | E166: 50 | F166: 10500 | G166: 580 | H166: 14.5 | I166: 668 | J166: 320 | K166: 53.2 | L166: 2.53 | M166: 83.8 | N166: 15.1 | O166: 98400 | P166: 36.17 | Q166: 12.03 | R166: 1.1 | S166: 0.68 | T166: 2 | U166: 1.19 | V166: 9.92 | W166: 9
A167: W10x30 | B167: W36x182 | C167: W920x271 | D167: 182 | E167: 53.6 | F167: 11300 | G167: 623 | H167: 14.5 | I167: 718 | J167: 347 | K167: 57.6 | L167: 2.55 | M167: 90.7 | N167: 18.4 | O167: 107000 | P167: 36.33 | Q167: 12.07 | R167: 1.18 | S167: 0.72 | T167: 2.13 | U167: 1.19 | V167: 9.96 | W167: 8
A168: W10x26 | B168: W36x194 | C168: W920x289 | D168: 194 | E168: 57 | F168: 12100 | G168: 664 | H168: 14.6 | I168: 767 | J168: 375 | K168: 61.9 | L168: 2.56 | M168: 97.8 | N168: 22.2 | O168: 116000 | P168: 36.49 | Q168: 12.12 | R168: 1.26 | S168: 0.77 | T168: 2.19 | U168: 1.19 | V168: 9.99 | W168: 7
A169: W10x22 | B169: W36x210 | C169: W920x313 | D169: 210 | E169: 61.8 | F169: 13200 | G169: 719 | H169: 14.6 | I169: 833 | J169: 411 | K169: 67.5 | L169: 2.58 | M169: 107 | N169: 28 | O169: 128000 | P169: 36.69 | Q169: 12.18 | R169: 1.36 | S169: 0.83 | T169: 2.31 | U169: 1.25 | V169: 10 | W169: 6
A170: W10x16 | B170: W36x230 | C170: W920x342 | D170: 230 | E170: 67.6 | F170: 15000 | G170: 837 | H170: 14.9 | I170: 943 | J170: 940 | K170: 114 | L170: 3.73 | M170: 176 | N170: 28.6 | O170: 282000 | P170: 35.9 | Q170: 16.47 | R170: 1.26 | S170: 0.76 | T170: 2.38 | U170: 1.44 | V170: 11.3 | W170: 5
A171: W10x19 | B171: W36x245 | C171: W920x365 | D171: 245 | E171: 72.1 | F171: 16100 | G171: 895 | H171: 15 | I171: 1010 | J171: 1010 | K171: 123 | L171: 3.75 | M171: 190 | N171: 34.6 | O171: 305000 | P171: 36.08 | Q171: 16.51 | R171: 1.35 | S171: 0.8 | T171: 2.5 | U171: 1.44 | V171: 11.4 | W171: 4
A172: W10x17 | B172: W36x260 | C172: W920x387 | D172: 260 | E172: 76.5 | F172: 17300 | G172: 953 | H172: 15 | I172: 1080 | J172: 1090 | K172: 132 | L172: 3.78 | M172: 204 | N172: 41.5 | O172: 330000 | P172: 36.26 | Q172: 16.55 | R172: 1.44 | S172: 0.84 | T172: 2.56 | U172: 1.5 | V172: 11.4 | W172: 3
A173: W10x15 | B173: W36x280 | C173: W920x417 | D173: 280 | E173: 82.4 | F173: 18900 | G173: 1030 | H173: 15.1 | I173: 1170 | J173: 1200 | K173: 144 | L173: 3.81 | M173: 223 | N173: 52.6 | O173: 366000 | P173: 36.52 | Q173: 16.59 | R173: 1.57 | S173: 0.89 | T173: 2.69 | U173: 1.5 | V173: 11.5 | W173: 2
A174: W10x12 | B174: W36x300 | C174: W920x446 | D174: 300 | E174: 88.3 | F174: 20300 | G174: 1110 | H174: 15.2 | I174: 1260 | J174: 1300 | K174: 156 | L174: 3.83 | M174: 241 | N174: 64.2 | O174: 399000 | P174: 36.74 | Q174: 16.66 | R174: 1.68 | S174: 0.94 | T174: 2.81 | U174: 1.5 | V174: 11.5 | W174: 1
A175: W8x67 | B175: W4x13 | C175: W100x19 | D175: 13 | E175: 3.83 | F175: 11.3 | G175: 5.5 | H175: 1.72 | I175: 6.3 | J175: 3.9 | K175: 1.9 | L175: 1 | M175: 2.9 | N175: 0.15 | O175: 14 | P175: 4.16 | Q175: 4.06 | R175: 0.34 | S175: 0.28 | T175: 0.69 | U175: 0.44 | V175: 2 | W175: 194
A176: W8x58 | B176: W5x16 | C176: W130x24 | D176: 16 | E176: 4.68 | F176: 21.3 | G176: 8.5 | H176: 2.13 | I176: 9.6 | J176: 7.5 | K176: 3 | L176: 1.27 | M176: 4.6 | N176: 0.19 | O176: 40.6 | P176: 5.01 | Q176: 5 | R176: 0.36 | S176: 0.24 | T176: 0.75 | U176: 0.44 | V176: 2.46 | W176: 193
A177: W8x48 | B177: W5x19 | C177: W130x28 | D177: 19 | E177: 5.54 | F177: 26.2 | G177: 10.2 | H177: 2.17 | I177: 11.6 | J177: 9.1 | K177: 3.6 | L177: 1.28 | M177: 5.5 | N177: 0.31 | O177: 50.9 | P177: 5.15 | Q177: 5.03 | R177: 0.43 | S177: 0.27 | T177: 0.81 | U177: 0.44 | V177: 2.49 | W177: 192
A178: W8x40 | B178: W6x12 | C178: W150x18 | D178: 12 | E178: 3.55 | F178: 22.1 | G178: 7.3 | H178: 2.49 | I178: 8.3 | J178: 3 | K178: 1.5 | L178: 0.92 | M178: 2.3 | N178: 0.09 | O178: 24.7 | P178: 6.03 | Q178: 4 | R178: 0.28 | S178: 0.23 | T178: 0.63 | U178: 0.38 | V178: 2.3 | W178: 190
A179: W8x35 | B179: W6x15 | C179: W150x22 | D179: 15 | E179: 4.43 | F179: 29.1 | G179: 9.7 | H179: 2.56 | I179: 10.8 | J179: 9.3 | K179: 3.1 | L179: 1.46 | M179: 4.8 | N179: 0.1 | O179: 76.5 | P179: 5.99 | Q179: 5.99 | R179: 0.26 | S179: 0.23 | T179: 0.63 | U179: 0.38 | V179: 2.96 | W179: 188
A180: W8x31 | B180: W6x16 | C180: W150x24 | D180: 16 | E180: 4.74 | F180: 32.1 | G180: 10.2 | H180: 2.6 | I180: 11.7 | J180: 4.4 | K180: 2.2 | L180: 0.97 | M180: 3.4 | N180: 0.22 | O180: 38.2 | P180: 6.28 | Q180: 4.03 | R180: 0.41 | S180: 0.26 | T180: 0.75 | U180: 0.44 | V180: 2.35 | W180: 189
A181: W8x28 | B181: W6x20 | C181: W150x30 | D181: 20 | E181: 5.87 | F181: 41.4 | G181: 13.4 | H181: 2.66 | I181: 14.9 | J181: 13.3 | K181: 4.4 | L181: 1.5 | M181: 6.7 | N181: 0.24 | O181: 113 | P181: 6.2 | Q181: 6.02 | R181: 0.36 | S181: 0.26 | T181: 0.75 | U181: 0.44 | V181: 3 | W181: 187
A182: W8x24 | B182: W6x25 | C182: W150x37 | D182: 25 | E182: 7.34 | F182: 53.4 | G182: 16.7 | H182: 2.7 | I182: 18.9 | J182: 17.1 | K182: 5.6 | L182: 1.52 | M182: 8.6 | N182: 0.46 | O182: 150 | P182: 6.38 | Q182: 6.08 | R182: 0.46 | S182: 0.32 | T182: 0.81 | U182: 0.44 | V182: 3.04 | W182: 186
A183: W8x21 | B183: W6x9 | C183: W150x14 | D183: 9 | E183: 2.68 | F183: 16.4 | G183: 5.6 | H183: 2.47 | I183: 6.2 | J183: 2.2 | K183: 1.1 | L183: 0.91 | M183: 1.7 | N183: 0.04 | O183: 17.7 | P183: 5.9 | Q183: 3.94 | R183: 0.21 | S183: 0.17 | T183: 0.56 | U183: 0.38 | V183: 2.27 | W183: 191
A184: W8x18 | B184: W8x10 | C184: W200x15 | D184: 10 | E184: 2.96 | F184: 30.8 | G184: 7.8 | H184: 3.22 | I184: 8.9 | J184: 2.1 | K184: 1.1 | L184: 0.84 | M184: 1.7 | N184: 0.04 | O184: 30.9 | P184: 7.89 | Q184: 3.94 | R184: 0.2 | S184: 0.17 | T184: 0.63 | U184: 0.44 | V184: 2.6 | W184: 185
A185: W8x14 | B185: W8x13 | C185: W200x19 | D185: 13 | E185: 3.84 | F185: 39.6 | G185: 9.9 | H185: 3.21 | I185: 11.4 | J185: 2.7 | K185: 1.4 | L185: 0.84 | M185: 2.1 | N185: 0.09 | O185: 40.8 | P185: 7.99 | Q185: 4 | R185: 0.26 | S185: 0.23 | T185: 0.69 | U185: 0.44 | V185: 2.63 | W185: 184
A186: W8x15 | B186: W8x14 | C186: W200x21 | D186: 14 | E186: 4.2 | F186: 47.6 | G186: 11.9 | H186: 3.37 | I186: 13.3 | J186: 6 | K186: 2.3 | L186: 1.2 | M186: 3.5 | N186: 0.09 | O186: 90.5 | P186: 7.99 | Q186: 5.24 | R186: 0.25 | S186: 0.2 | T186: 0.63 | U186: 0.39 | V186: 3.05 | W186: 182
A187: W8x13 | B187: W8x15 | C187: W200x22 | D187: 15 | E187: 4.44 | F187: 48 | G187: 11.8 | H187: 3.29 | I187: 13.6 | J187: 3.4 | K187: 1.7 | L187: 0.88 | M187: 2.7 | N187: 0.14 | O187: 51.8 | P187: 8.11 | Q187: 4.01 | R187: 0.32 | S187: 0.24 | T187: 0.75 | U187: 0.5 | V187: 2.65 | W187: 183
A188: W8x10 | B188: W8x18 | C188: W200x27 | D188: 18 | E188: 5.26 | F188: 61.9 | G188: 15.2 | H188: 3.43 | I188: 17 | J188: 8 | K188: 3 | L188: 1.23 | M188: 4.7 | N188: 0.17 | O188: 122 | P188: 8.14 | Q188: 5.25 | R188: 0.33 | S188: 0.23 | T188: 0.75 | U188: 0.44 | V188: 3.07 | W188: 181
A189: W6x25 | B189: W8x21 | C189: W200x31 | D189: 21 | E189: 6.16 | F189: 75.3 | G189: 18.2 | H189: 3.49 | I189: 20.4 | J189: 9.8 | K189: 3.7 | L189: 1.26 | M189: 5.7 | N189: 0.28 | O189: 152 | P189: 8.28 | Q189: 5.27 | R189: 0.4 | S189: 0.25 | T189: 0.81 | U189: 0.5 | V189: 3.09 | W189: 180
A190: W6x20 | B190: W8x24 | C190: W200x36 | D190: 24 | E190: 7.08 | F190: 82.8 | G190: 20.9 | H190: 3.42 | I190: 23.2 | J190: 18.3 | K190: 5.6 | L190: 1.61 | M190: 8.6 | N190: 0.35 | O190: 259 | P190: 7.93 | Q190: 6.5 | R190: 0.4 | S190: 0.24 | T190: 0.88 | U190: 0.56 | V190: 3.45 | W190: 179
A191: W6x15 | B191: W8x28 | C191: W200x42 | D191: 28 | E191: 8.25 | F191: 98 | G191: 24.3 | H191: 3.45 | I191: 27.2 | J191: 21.7 | K191: 6.6 | L191: 1.62 | M191: 10.1 | N191: 0.54 | O191: 313 | P191: 8.06 | Q191: 6.54 | R191: 0.47 | S191: 0.28 | T191: 0.94 | U191: 0.56 | V191: 3.47 | W191: 178
A192: W6x16 | B192: W8x31 | C192: W200x46 | D192: 31 | E192: 9.13 | F192: 110 | G192: 27.5 | H192: 3.47 | I192: 30.4 | J192: 37.1 | K192: 9.3 | L192: 2.02 | M192: 14.1 | N192: 0.54 | O192: 531 | P192: 8 | Q192: 8 | R192: 0.43 | S192: 0.28 | T192: 0.94 | U192: 0.56 | V192: 3.95 | W192: 177
A193: W6x12 | B193: W8x35 | C193: W200x52 | D193: 35 | E193: 10.3 | F193: 127 | G193: 31.2 | H193: 3.51 | I193: 34.7 | J193: 42.6 | K193: 10.6 | L193: 2.03 | M193: 16.1 | N193: 0.77 | O193: 619 | P193: 8.12 | Q193: 8.02 | R193: 0.49 | S193: 0.31 | T193: 1 | U193: 0.56 | V193: 3.97 | W193: 176
A194: W6x9 | B194: W8x40 | C194: W200x59 | D194: 40 | E194: 11.7 | F194: 146 | G194: 35.5 | H194: 3.53 | I194: 39.8 | J194: 49.1 | K194: 12.2 | L194: 2.04 | M194: 18.5 | N194: 1.12 | O194: 726 | P194: 8.25 | Q194: 8.07 | R194: 0.56 | S194: 0.36 | T194: 1.06 | U194: 0.63 | V194: 4 | W194: 175
A195: W5x19 | B195: W8x48 | C195: W200x71 | D195: 48 | E195: 14.1 | F195: 184 | G195: 43.3 | H195: 3.61 | I195: 49 | J195: 60.9 | K195: 15 | L195: 2.08 | M195: 22.9 | N195: 1.96 | O195: 930 | P195: 8.5 | Q195: 8.11 | R195: 0.69 | S195: 0.4 | T195: 1.19 | U195: 0.63 | V195: 4.05 | W195: 174
A196: W5x16 | B196: W8x58 | C196: W200x86 | D196: 58 | E196: 17.1 | F196: 228 | G196: 52 | H196: 3.65 | I196: 59.8 | J196: 75.1 | K196: 18.3 | L196: 2.1 | M196: 27.9 | N196: 3.34 | O196: 1180 | P196: 8.75 | Q196: 8.22 | R196: 0.81 | S196: 0.51 | T196: 1.31 | U196: 0.69 | V196: 4.11 | W196: 173
A197: W4x13 | B197: W8x67 | C197: W200x100 | D197: 67 | E197: 19.7 | F197: 272 | G197: 60.4 | H197: 3.72 | I197: 70.2 | J197: 88.6 | K197: 21.4 | L197: 2.12 | M197: 32.7 | N197: 5.06 | O197: 1440 | P197: 9 | Q197: 8.28 | R197: 0.94 | S197: 0.57 | T197: 1.44 | U197: 0.69 | V197: 4.16 | W197: 172

Sheet C
A1: C Channels
B2: 1 | C2: 2 | D2: 3 | E2: 4 | F2: 5 | G2: 6 | H2: 7 | I2: 8 | J2: 9 | K2: 10 | L2: 11 | M2: 12 | N2: 13 | O2: 14 | P2: 15 | Q2: 16 | R2: 17 | S2: 18 | T2: 19 | U2: 20 | V2: 21 | W2: 22
A3: Sorted | D3: Mass | E3: Area | F3: Ix | G3: Sx | H3: rx | I3: Zx | J3: Iy | K3: Sy | L3: ry | M3: Zy | N3: J | O3: Cw | P3: d | Q3: b | R3: t | S3: w | T3: k | U3: k1 | V3: S.Area | W3: Sort
A4: Imperial | B4: Imperial | C4: Metric | D4: lb/ft | E4: in^2 | F4: in^4 | G4: in^3 | H4: in | I4: in^3 | J4: in^4 | K4: in^3 | L4: in | M4: in^3 | N4: in^4 | O4: in^6 | P4: in | Q4: in | R4: in | S4: in | T4: in | U4: in | V4: ft^2/ft | W4: NDX
A5: C15x50 | B5: C10x15.3 | C5: C250x23 | D5: 15.3 | E5: 4.464008928 | F5: 66.78976716 | G5: 13.36419996 | H5: 3.866141732 | J5: 2.210308841 | K5: 1.147246389 | L5: 0.7047244094 | N5: 0.2075768303 | O5: 43.56959892 | P5: 10 | Q5: 2.559055118 | R5: 0.437007874 | S5: 0.2401574803 | T5: 0.9448818898 | V5: 2.480314961 | W5: 10
A6: C15x40 | B6: C10x20 | C6: C250x30 | D6: 20 | E6: 5.859011718 | F6: 78.56206425 | G6: 15.68310223 | H6: 3.661417323 | J6: 2.786911148 | K6: 1.312010498 | L6: 0.688976378 | N6: 0.3675839703 | O6: 55.85846015 | P6: 10 | Q6: 2.716535433 | R6: 0.437007874 | S6: 0.3779527559 | T6: 0.9448818898 | V6: 2.50984252 | W6: 9
A7: C15x33.9 | B7: C10x25 | C7: C250x37 | D7: 25 | E7: 7.362514725 | F7: 91.05511422 | G7: 18.24609948 | H7: 3.519685039 | J7: 3.363513454 | K7: 1.482876982 | L7: 0.6732283465 | N7: 0.6943252773 | O7: 67.77493165 | P7: 10 | Q7: 2.874015748 | R7: 0.437007874 | S7: 0.5275590551 | T7: 0.9448818898 | V7: 2.536089239 | W7: 8
A8: C12x30 | B8: C10x30 | C8: C250x45 | D8: 30 | E8: 8.788517577 | F8: 102.8274113 | G8: 20.56500176 | H8: 3.421259843 | J8: 3.844015376 | K8: 1.635436342 | L8: 0.6614173228 | N8: 1.220474882 | O8: 76.33989554 | P8: 10 | Q8: 2.992125984 | R8: 0.437007874 | S8: 0.6732283465 | T8: 0.9448818898 | V8: 2.552493438 | W8: 7
A9: C12x25 | B9: C12x20.7 | C9: C310x31 | D9: 20.7 | E9: 6.076012152 | F9: 128.5342641 | G9: 21.41933418 | H9: 4.606299213 | J9: 3.81999028 | K9: 1.714767209 | L9: 0.7913385827 | N9: 0.3651814607 | O9: 109.1101922 | P9: 12.00787402 | Q9: 2.913385827 | R9: 0.5 | S9: 0.2834645669 | T9: 1.062992126 | V9: 2.926509186 | W9: 6
A10: C12x20.7 | B10: C12x25 | C10: C310x37 | D10: 25 | E10: 7.316014632 | F10: 143.9103256 | G10: 23.98233143 | H10: 4.448818898 | J10: 4.444642779 | K10: 1.885633693 | L10: 0.7795275591 | N10: 0.5333571334 | O10: 128.8468481 | P10: 12.00787402 | Q10: 3.031496063 | R10: 0.5 | S10: 0.3858267717 | T10: 1.062992126 | V10: 2.946194226 | W10: 5
A11: C10x30 | B11: C12x30 | C11: C310x45 | D11: 30 | E11: 8.819517639 | F11: 161.6888968 | G11: 26.97249489 | H11: 4.291338583 | J11: 5.093320373 | K11: 2.050397802 | L11: 0.7598425197 | N11: 0.8649034596 | O11: 148.583504 | P11: 12.00787402 | Q11: 3.149606299 | R11: 0.5 | S11: 0.5118110236 | T11: 1.062992126 | V11: 2.965879265 | W11: 4
A12: C10x25 | B12: C15x33.9 | C12: C380x50 | D12: 33.9 | E12: 9.966519933 | F12: 314.7287589 | G12: 41.92331219 | H12: 5.62992126 | J12: 8.144507578 | K12: 3.136620446 | L12: 0.905511811 | N12: 1.011456546 | O12: 354.5150271 | P12: 15 | Q12: 3.385826772 | R12: 0.6496062992 | S12: 0.4015748031 | T12: 1.377952756 | V12: 3.576115486 | W12: 3
A13: C10x20 | B13: C15x40 | C13: C380x60 | D13: 40 | E13: 11.73352347 | F13: 348.3638935 | G13: 46.37804551 | H13: 5.433070866 | J13: 9.225636903 | K13: 3.386817797 | L13: 0.8858267717 | N13: 1.448713295 | O13: 405.9048104 | P13: 15 | Q13: 3.503937008 | R13: 0.6496062992 | S13: 0.5196850394 | T13: 1.377952756 | V13: 3.576115486 | W13: 2
A14: C10x15.3 | B14: C15x50 | C14: C380x74 | D14: 50 | E14: 14.69402939 | F14: 403.6216145 | G14: 53.76191855 | H14: 5.236220472 | J14: 11.05154421 | K14: 3.807881632 | L14: 0.8661417323 | N14: 2.642760571 | O14: 487.830552 | P14: 15 | Q14: 3.700787402 | R14: 0.6496062992 | S14: 0.7165354331 | T14: 1.377952756 | V14: 3.608923885 | W14: 1
A15: C9x20 | B15: C3x3.5 | C15: C75x5 | D15: 3.5 | E15: 1.074152148 | F15: 1.525593602 | G15: 1.019096526 | H15: 1.192913386 | J15: 0.1640914064 | K15: 0.1818507574 | L15: 0.3909448819 | N15: 0.02207906332 | O15: 0.256576527 | P15: 2.992125984 | Q15: 1.338582677 | R15: 0.2716535433 | S15: 0.1338582677 | T15: 0.6299212598 | V15: 0.9219160105 | W15: 32
A16: C9x15 | B16: C3x4.1 | C16: C75x6 | D16: 4.1 | E16: 1.182652365 | F16: 1.609681439 | G16: 1.074017896 | H16: 1.165354331 | J16: 0.1854737419 | K16: 0.1958862185 | L16: 0.3976377953 | N16: 0.02618735475 | O16: 0.285995316 | P16: 2.992125984 | Q16: 1.377952756 | R16: 0.2716535433 | S16: 0.1692913386 | T16: 0.6299212598 | V16: 0.9284776903 | W16: 31
A17: C9x13.4 | B17: C3x5 | C17: C75x7 | D17: 5 | E17: 1.447702895 | F17: 1.799479698 | G17: 1.202167759 | H17: 1.114173228 | J17: 0.2304006716 | K17: 0.2239571408 | L17: 0.3976377953 | N17: 0.04204391818 | O17: 0.3478120119 | P17: 2.992125984 | Q17: 1.456692913 | R17: 0.2716535433 | S17: 0.2598425197 | T17: 0.6299212598 | V17: 0.9416010499 | W17: 30
A18: C8x18.75 | B18: C3x6 | C18: C75x9 | D18: 6 | E18: 1.736003472 | F18: 2.03492564 | G18: 1.360829493 | H18: 1.078740157 | J18: 0.295508682 | K18: 0.263012337 | L18: 0.4133858268 | N18: 0.07135453542 | O18: 0.4394198865 | P18: 2.992125984 | Q18: 1.57480315 | R18: 0.2716535433 | S18: 0.3543307087 | T18: 0.6299212598 | V18: 0.9645669291 | W18: 29
A19: C8x13.75 | B19: C4x4.5 | C19: C100x7 | D19: 4.5 | E19: 1.382602765 | F19: 3.675839703 | G19: 1.830712323 | H19: 1.62992126 | J19: 0.2931061724 | K19: 0.2715556612 | L19: 0.4606299213 | N19: 0.03195337781 | O19: 0.867668081 | P19: 4.015748031 | Q19: 1.57480315 | R19: 0.2952755906 | S19: 0.125984252 | T19: 0.6692913386 | V19: 1.174540682 | W19: 28
A20: C8x11.5 | B20: C4x5.4 | C20: C100x8 | D20: 5.4 | E20: 1.581003162 | F20: 3.868040472 | G20: 1.928350313 | H20: 1.562992126 | J20: 0.3171312685 | K20: 0.28376041 | L20: 0.4488188976 | N20: 0.03988165953 | O20: 0.9160787465 | P20: 4.015748031 | Q20: 1.57480315 | R20: 0.2952755906 | S20: 0.1850393701 | T20: 0.6692913386 | V20: 1.164698163 | W20: 27
A21: C7x14.75 | B21: C4x6.25 | C21: C100x9 | D21: 6.25 | E21: 1.844503689 | F21: 4.25244201 | G21: 2.111421546 | H21: 1.515748031 | J21: 0.3795965184 | K21: 0.3161029944 | L21: 0.4527559055 | N21: 0.05549797199 | O21: 1.091101922 | P21: 4.015748031 | Q21: 1.653543307 | R21: 0.2952755906 | S21: 0.2480314961 | T21: 0.6692913386 | V21: 1.177821522 | W21: 26
A22: C7x12.25 | B22: C4x7.25 | C22: C100x11 | D22: 7.25 | E22: 2.123504247 | F22: 4.588793355 | G22: 2.282288029 | H22: 1.468503937 | J22: 0.4180366721 | K22: 0.3368510674 | L22: 0.4448818898 | N22: 0.0819255777 | O22: 1.19164715 | P22: 4.015748031 | Q22: 1.692913386 | R22: 0.2952755906 | S22: 0.3228346457 | T22: 0.6692913386 | V22: 1.181102362 | W22: 25
A23: C7x9.8 | B23: C5x6.7 | C23: C130x10 | D23: 6.7 | E23: 1.953003906 | F23: 7.423754695 | G23: 2.965753963 | H23: 1.948818898 | J23: 0.468489374 | K23: 0.3746857887 | L23: 0.4881889764 | N23: 0.05405646623 | O23: 2.156136562 | P23: 5 | Q23: 1.732283465 | R23: 0.3188976378 | S23: 0.188976378 | T23: 0.7480314961 | V23: 1.377952756 | W23: 24
A24: C6x13 | B24: C5x9 | C24: C130x13 | D24: 9 | E24: 2.619505239 | F24: 8.793185173 | G24: 3.51496766 | H24: 1.830708661 | J24: 0.6054324217 | K24: 0.4393709575 | L24: 0.4803149606 | N24: 0.1081129325 | O24: 2.778027418 | P24: 5 | Q24: 1.850393701 | R24: 0.3188976378 | S24: 0.3267716535 | T24: 0.7086614173 | V24: 1.394356955 | W24: 23
A25: C6x10.5 | B25: C6x10.5 | C25: C150x16 | D25: 10.5 | E25: 3.069006138 | F25: 14.91958468 | G25: 4.991742267 | H25: 2.208661417 | J25: 0.8432808731 | K25: 0.5571467836 | L25: 0.5236220472 | N25: 0.1282940132 | O25: 5.697562935 | P25: 5.984251969 | Q25: 2.007874016 | R25: 0.342519685 | S25: 0.3149606299 | T25: 0.7874015748 | V25: 1.614173228 | W25: 21
A26: C6x8.2 | B26: C6x13 | C26: C150x19 | D26: 13 | E26: 3.797507595 | F26: 17.08184333 | G26: 5.711822447 | H26: 2.122047244 | J26: 1.021066584 | K26: 0.6285445642 | L26: 0.5196850394 | N26: 0.2376082004 | O26: 6.851971112 | P26: 5.984251969 | Q26: 2.125984252 | R26: 0.342519685 | S26: 0.437007874 | T26: 0.7874015748 | V26: 1.633858268 | W26: 20
A27: C5x9 | B27: C6x8.2 | C27: C150x12 | D27: 8.2 | E27: 2.371504743 | F27: 12.87745151 | G27: 4.302173959 | H27: 2.326771654 | J27: 0.6678976716 | K27: 0.4839182907 | L27: 0.531496063 | N27: 0.07351679407 | O27: 4.505915785 | P27: 5.984251969 | Q27: 1.88976378 | R27: 0.342519685 | S27: 0.2007874016 | T27: 0.7874015748 | V27: 1.594488189 | W27: 22
A28: C5x6.7 | B28: C7x12.25 | C28: C180x18 | D28: 12.25 | E28: 3.580507161 | F28: 24.0250961 | G28: 6.895683083 | H28: 2.594488189 | J28: 1.143594574 | K28: 0.6956706827 | L28: 0.562992126 | N28: 0.1604876419 | O28: 10.7993023 | P28: 7.007874016 | Q28: 2.165354331 | R28: 0.3661417323 | S28: 0.3149606299 | T28: 0.8267716535 | V28: 1.837270341 | W28: 18
A29: C4x7.25 | B29: C7x14.75 | C29: C180x22 | D29: 14.75 | E29: 4.309008618 | F29: 27.14835859 | G29: 7.7500155 | H29: 2.507874016 | J29: 1.364625458 | K29: 0.7811039244 | L29: 0.562992126 | N29: 0.2642760571 | O29: 12.92192378 | P29: 7.007874016 | Q29: 2.283464567 | R29: 0.3661417323 | S29: 0.4173228346 | T29: 0.8267716535 | V29: 1.86023622 | W29: 17
A30: C4x6.25 | B30: C7x9.8 | C30: C180x15 | D30: 9.8 | E30: 2.867505735 | F30: 21.28623514 | G30: 6.077964912 | H30: 2.728346457 | J30: 0.9706138825 | K30: 0.6285445642 | L30: 0.5826771654 | N30: 0.09946389786 | O30: 9.160787465 | P30: 7.007874016 | Q30: 2.086614173 | R30: 0.3661417323 | S30: 0.2086614173 | T30: 0.8267716535 | V30: 1.827427822 | W30: 19
A31: C4x5.4 | B31: C8x11.5 | C31: C200x17 | D31: 11.5 | E31: 3.363506727 | F31: 32.43387974 | G31: 8.116157965 | H31: 3.098425197 | J31: 1.304562718 | K31: 0.7811039244 | L31: 0.6220472441 | N31: 0.129255017 | O31: 16.16171447 | P31: 7.992125984 | Q31: 2.244094488 | R31: 0.3897637795 | S31: 0.2204724409 | T31: 0.8661417323 | V31: 2.043963255 | W31: 16
A32: C4x4.5 | B32: C8x13.75 | C32: C200x21 | D32: 13.75 | E32: 4.03000806 | F32: 35.79739319 | G32: 8.970490382 | H32: 2.984251969 | J32: 1.506373525 | K32: 0.8482300429 | L32: 0.6102362205 | N32: 0.18499324 | O32: 18.76844261 | P32: 7.992125984 | Q32: 2.322834646 | R32: 0.3897637795 | S32: 0.3031496063 | T32: 0.8661417323 | V32: 2.057086614 | W32: 15
A33: C3x6 | B33: C8x18.75 | C33: C200x28 | D33: 18.75 | E33: 5.518011036 | F33: 43.7256749 | G33: 10.98427394 | H33: 2.818897638 | J33: 1.982070428 | K33: 1.012994152 | L33: 0.5984251969 | N33: 0.437256749 | O33: 24.83839528 | P33: 7.992125984 | Q33: 2.519685039 | R33: 0.3897637795 | S33: 0.4881889764 | T33: 0.8661417323 | V33: 2.089895013 | W33: 14
A34: C3x5 | B34: C9x13.4 | C34: C230x20 | D34: 13.4 | E34: 3.921507843 | F34: 47.56969028 | G34: 10.55710773 | H34: 3.488188976 | J34: 1.717794371 | K34: 0.9519704079 | L34: 0.6614173228 | N34: 0.1669744179 | O34: 27.37064547 | P34: 9.015748031 | Q34: 2.401574803 | R34: 0.4133858268 | S34: 0.2322834646 | T34: 0.905511811 | V34: 2.263779528 | W34: 13
A35: C3x4.1 | B35: C9x15 | C35: C230x22 | D35: 15 | E35: 4.402008804 | F35: 51.17345469 | G35: 11.3504164 | H35: 3.409448819 | J35: 1.934020236 | K35: 1.025198901 | L35: 0.6614173228 | N35: 0.2080573322 | O35: 31.02006487 | P35: 9.015748031 | Q35: 2.480314961 | R35: 0.4133858268 | S35: 0.2834645669 | T35: 0.905511811 | V35: 2.283464567 | W35: 12
A36: C3x3.5 | B36: C9x20 | C36: C230x30 | D36: 20 | E36: 5.89001178 | F36: 61.26399506 | G36: 13.54727119 | H36: 3.224409449 | J36: 2.426534706 | K36: 1.177758261 | L36: 0.6417322835 | N36: 0.4300492202 | O36: 39.10092211 | P36: 9.015748031 | Q36: 2.637795276 | R36: 0.4133858268 | S36: 0.4488188976 | T36: 0.905511811 | V36: 2.306430446 | W36: 11

Sheet H
B1: 1 | C1: 2 | D1: 3 | E1: 4 | F1: 5 | G1: 6 | H1: 7 | I1: 8 | J1: 9 | K1: 10 | L1: 11 | M1: 12 | N1: 13 | O1: 14 | P1: 15 | Q1: 16 | R1: 17 | S1: 18 | T1: 19 | U1: 20 | V1: 21 | W1: 22
A2: Designation | B2: Sorted | D2: Mass | E2: Area | F2: Ix | G2: Sx | H2: rx | I2: Zx | J2: Iy | K2: Sy | L2: ry | M2: Zy | N2: J | O2: Cw | P2: d | Q2: b | R2: t | S2: w | T2: k | U2: k1 | V2: S.Area | W2: NDX
A3: Imperial | B3: Imperial | C3: Metric | D3: lb/ft | E3: in^2 | F3: in^4 | G3: in^3 | H3: in | I3: in^3 | J3: in^4 | K3: in^3 | L3: in | M3: in^3 | N3: in^4 | O3: in^6 | P3: in | Q3: in | R3: in | S3: in | T3: in | U3: in | V3: ft^2/ft | W3: NDX
